Workbook

Sheet Cover Page
N2: Version 24.2a (for incinerators) - 27/11/24
N4: Note that there is another version of this template available for co-incinerators
N13: Notes:
N14: This template may require adjustments by individual operators to meet specific reporting requirements as defined in the site Permit(s)
B29: Annual Performance Report 2024
B31: Permit EPR/BT7116IW
B33: Lakeside EFW Ltd
B37: Lakeside
B39: Year: | C39: 2024
B41: Address: | C41: Lakeside EFW Ltd, Lakeside Road, Conlbrook, SL3 0FE
B43: Tel: | C43: 01753 688430
B45: Email: | C45: martin.rogers@lakesideefw.co.uk
B47: Prepared by: | C47: Martin Rogers | F47: Position: | G47: EHS Manager
B49: Approved by: | C49: Danny Coulston | F49: Position: | G49: Director of Operations
B51: Version: | C51: 1
B53: Issue Date: | C53: 2025-01-24

Sheet Facility Info
A1: =+'Cover Page'!$B$29 -> Annual Performance Report 2024 | E1: =+'Cover Page'!$B$33 -> Lakeside EFW Ltd
A3: Plant Description and Design | K3: Notes:
A5: Lakeside Energy from Waste (EfW) A joint venture project between two of the UK’s leading recycling and waste management companies; Grundon Waste Management and Viridor. The Lakeside EfW facility at Colnbrook near Slough has been operational since 2010. Using advanced technology, this plant is capable of processessing over 450,000 tonnes of residual waste per year, generating 37MW of power – enough to provide electricity to every household in Slough (56,000 homes). There is an education centre adjacent to Lakeside EfW, where schools and other groups can learn about sustainable waste management and energy from waste. | K5: Include summary of plant design, design capacity, no. of combustion lines, electrical and heat capacity and any other general information that describes the facility, its location and purpose
A20: Summary of Operational Processes and Procedures
A22: Lakeside operate an Integrated Management System (IMS) that is ISO 14001, ISO 45001, ISO 9001, ISO 22301 and ISO 50001 certified. It includes all the procedures for receiving and inspecting waste, auditing suppliers to ensure waste quality and compliance. Operations includes procedures for running the plant, showing how to start a line, run a line and shutdown a line. EHS includes procedures for monitoring and reporting compliance. Maintenance includes all the procedures for planned maintenance, unplanned maintenance, outages and preventative maintenance. | K22: Include summary of key processes and procedures such as (but not limited to); waste reception, control rooms, grate, bed and boiler, energy & heat generation, cooling systems, residue management, emission controls, health and safety systems, maintenance

Sheet Contents
A1: =+'Cover Page'!$B$29 -> Annual Performance Report 2024 | E1: =+'Cover Page'!$B$33 -> Lakeside EFW Ltd
A3: Contents | K3: Notes:
A4: Section | B4: Subject | H4: Page | K4: Section references and Page nos. to be inserted
B5: Facility Information | H5: 2 | K5: Sections and Subjects may require adjustment by individual operators to meet specific reporting requirements as defined in the sites Permit(s)
B6: Operational Data | H6: 4
B7: Operational Summary | H7: 5,6
B8: Performance Form 1 | H8: 7
B9: Energy Form 1 | H9: 8
B10: Permit Compliance | H10: 9
B11: Improvements | H11: 10
B12: Public Liaison | H12: 11
B13: Carbon dioxide and nitrous oxide emissions | H13: 12
B14: Residue Quality | H14: 13
B15: Emissions to Water | H15: 14
B16: Emissions to Air (periodically monitored) | H16: 15
B17: Emissions to Air (continuously monitored) | H17: 16
B18: Hydrogen Chloride emissions | H18: 17
B19: Sulphur Dioxide emissions | H19: 18
B20: Oxides of Nitrogen emissions | H20: 19
B21: Total Organic Carbon emissions | H21: 20
B22: Particulate Matter emissions | H22: 21
B23: Carbon Monoxide emissions | H23: 23
B24: Ammonia emissions | H24: 24
A27: Version Control
A28: Section | B28: Information | H28: Date
A35: Distribution
A36: Copy | B36: Name, Role | H36: No.
A45: This report is required under the Industrial Emissions Directive’s Article 55(2) requirements on reporting and public information on waste incineration plants and co-incineration plants, which require the operator to produce an annual report on the functioning and monitoring of the plant and make it available to the public.

Sheet Operational Data
A1: =+'Cover Page'!$B$29 -> Annual Performance Report 2024 | E1: =+'Cover Page'!$B$33 -> Lakeside EFW Ltd
A3: Operational Data
A4: Plant Size | B4: 468280 | D4: tonnes pa | F4: MWth | H4: MWe | J4: Notes:
A5: No. of combustion lines | B5: 2 | D5: No. of Turbines: | F5: 1 | J5: * - RDF to include SRF
J6: ** - Combusted tonnage = tonnes delivered in period + (tonnes in bunker at start of period – tonnes in bunker at end of period), or equivalent calculation depending on plant type
A7: Waste types received | B7: Unit | C7: Q1 | D7: Q2 | E7: Q3 | F7: Q4 | G7: Year Total | H7: %
A8: Household / Local Authority | B8: tonnes | C8: 66473 | D8: 62891 | E8: 46780 | F8: 66602 | G8: =SUM(C8:F8) -> 242746 | H8: =IF(G8>0,G8/$G$18,"-") -> 0.6000009887
A9: Commercial & Industrial | C9: 39397 | D9: 36383 | E9: 25329 | F9: 39015 | G9: =SUM(C9:F9) -> 140124 | H9: 0.3463477814 | J9: *** - CHP plants only
A10: Hazardous | C10: 972 | D10: 948 | E10: 773 | F10: 1105 | G10: 3798 | H10: 0.00938760579 | J10: **** Availability Definition: 'the availability of a line is to be calculated by the number of hours the line reported Continuously Monitored emission levels to the Regulator through the calendar year divided by the total number of hours in that year. The overall plant availability is calculated as the Mean of all lines in the plant. For clarity this includes periods of abnormal operation.' Rationale: The primary function of an Energy from Waste facility is the disposal of waste. It follows therefore that the availability of a plant is determined by the period of time a facility spends undertaking this activity.
A11: Clinical | C11: 3946 | D11: 4597 | E11: 5084 | F11: 4281 | G11: 17908 | H11: 0.04426362414
A12: Waste wood (biomass) | G12: 0 | H12: -
A13: Refuse Derived Fuel * - H'hold/LA | G13: =SUM(C13:F13) -> 0 | H13: -
A14: Refuse Derived Fuel * - C&I | G14: 0 | H14: -
A15: Other [Please specify] | G15: 0 | H15: -
A16: Other [Please specify] | G16: 0 | H16: -
A17: Other [Please specify] | G17: 0 | H17: -
A18: Total waste received | C18: =SUM(C8:C17) -> 110788 | D18: =SUM(D8:D17) -> 104819 | E18: =SUM(E8:E17) -> 77966 | F18: =SUM(F8:F17) -> 111003 | G18: 404576
A19: Rejected Waste | F19: 4.12 | G19: =SUM(C19:F19) -> 4.12 | H19: =IF(G19>0,G19/$G$18,"-") -> 1.018350075e-05
A20: Unprocessed waste transferred out | G20: =SUM(C20:F20) -> 0 | H20: =IF(G20>0,G20/$G$18,"-") -> -
A21: Total waste combusted ** | C21: 109778 | D21: 102586 | E21: 75829 | F21: 111121 | G21: =SUM(C21:F21) -> 399314
J22: Password for protected cells A password has been set to prevent accidental editing of cells with formulae. If you still need to make an edit for some reason then the password = 1234
A23: Energy Usage / Export | B23: Unit | C23: Q1 | D23: Q2 | E23: Q3 | F23: Q4 | G23: Year Total | H23: KWh/te
A24: Power Generated | B24: MWh | C24: 80791 | D24: 73456 | E24: 54776 | F24: 79976 | G24: =SUM(C24:F24) -> 288999 | H24: =IF(G24>0,G24*1000/$G$21,"-") -> 723.7387119
A25: Power Exported | C25: 73176 | D25: 65977 | E25: 48931 | F25: 72212 | G25: =SUM(C25:F25) -> 260296 | H25: =IF(G25>0,G25*1000/$G$21,"-") -> 651.8579364
A26: Power Used on site | C26: 7615 | D26: 7479 | E26: 5845 | F26: 7764 | G26: =SUM(C26:F26) -> 28703 | H26: =IF(G26>0,G26*1000/$G$21,"-") -> 71.88077553
A27: Power Imported | G27: 0 | H27: =IF(G27>0,G27*1000/$G$21,"-") -> -
A28: Parasitic Load | B28: % | C28: =IF(C24>0,1-C25/(C24+C27),"-") -> 0.09425554827 | D28: =IF(D24>0,1-D25/(D24+D27),"-") -> 0.1018160531 | E28: =IF(E24>0,1-E25/(E24+E27),"-") -> 0.1067073171 | F28: =IF(F24>0,1-F25/(F24+F27),"-") -> 0.09707912374 | G28: =IF(G24>0,1-G25/(G24+G27),"-") -> 0.09931868276
A29: Thermal Energy Produced *** | B29: MWh | G29: =SUM(C29:F29) -> 0 | H29: =IF(G29>0,G29*1000/$G$21,"-") -> -
A30: Thermal Energy Exported *** | G30: 0 | H30: =IF(G30>0,G30*1000/$G$21,"-") -> -
A31: R1 value (if applicable) | B31: R1
A33: Waste Disposal & Recovery | B33: Unit | C33: Q1 | D33: Q2 | E33: Q3 | F33: Q4 | G33: Year Total | H33: % inputs
A34: APC Residues - produced | B34: tonnes | C34: 3228 | D34: 2993 | E34: 2532 | F34: 3354 | G34: =SUM(C34:F34) -> 12107 | H34: =IF(G34>0,G34/$G$21,"-") -> 0.03031949794
A35: IBA - produced | C35: 20211 | D35: 19430.74 | E35: 14514.82 | F35: 20334.7 | G35: 74491.26 | H35: =IF(G35>0,G35/$G$21,"-") -> 0.18654808
A36: Metals recycling | C36: 1202 | D36: 1101 | E36: 858 | F36: 1102 | G36: =SUM(C36:F36) -> 4263 | H36: 0.01067580901
A37: Other | C37: 0 | D37: 0 | E37: 0 | F37: 0 | G37: =SUM(C37:F37) -> 0 | H37: -
A38: Other | C38: 0 | D38: 0 | E38: 0 | F38: 0 | G38: 0 | H38: -
A39: Other | C39: 0 | D39: 0 | E39: 0 | F39: 0 | G39: 0 | H39: -
A41: Raw Material Usage | B41: Unit | C41: Q1 | D41: Q2 | E41: Q3 | F41: Q4 | G41: Year Total | H41: kg or Ltr /te
A42: Mains Water | B42: ltrs | C42: 20284 | D42: 22213 | E42: 16706 | F42: 20650 | G42: =SUM(C42:F42) -> 79853 | H42: =IF(G42>0,G42/$G$21,"-") -> 0.1999754579
A43: Other Water | B43: ltrs | G43: 0 | H43: =IF(G43>0,G43/$G$21,"-") -> -
A44: Ammonia | B44: kgs | C44: 60454 | G44: 60454 | H44: 0.1513946418
A45: Urea | B45: kgs | D45: 92827 | E45: 30104 | F45: 8362 | G45: =SUM(C45:F45) -> 131293 | H45: 0.3287963858
A46: Activated Carbon | B46: kgs | C46: 44192 | D46: 42569 | E46: 33280 | F46: 45972 | G46: 166013 | H46: 0.4157455035
A47: Lime / hydrated lime | B47: kgs | C47: 1349056 | D47: 1211001 | E47: 956198 | F47: 1332305 | G47: 4848560 | H47: 12.14222391
A48: Fuel oil | B48: ltrs | C48: 53205 | D48: 126861 | E48: 92066 | F48: 21847 | G48: 293979 | H48: 0.7362101003
A49: Gas | B49: cuf | G49: 0
A50: Other | G50: 0
A52: Summary | B52: Line/Unit | C52: Q1 | D52: Q2 | E52: Q3 | F52: Q4 | G52: Year Total | I52: Hrs in year
A53: Availability of waste combustion by line, hrs **** | B53: 1 | C53: 2072 | D53: 2118 | E53: 1519 | F53: 2187 | G53: =SUM(C53:F53) -> 7896 | H53: =+G53/$I$53 -> 0.8989071038 | I53: 8784 | J53: Change this figure to 8784 in a leap year
B54: 2 | C54: 2184 | D54: 1963 | E54: 1545 | F54: 2168 | G54: 7860 | H54: =+G54/$I$53 -> 0.8948087432
B55: 3 | G55: 0 | H55: 0
B56: 4 | G56: 0 | H56: 0
B57: 5 | G57: =SUM(C57:F57) -> 0 | H57: 0
A58: Overall Availability, mean avg. of all lines, hrs | G58: =AVERAGE(G53:G57) -> 3151.2 | H58: 0.3587431694
A59: Hours of turbine operations, hrs | B59: 1 | C59: 2184 | D59: 2184 | E59: 2157 | F59: 2102 | G59: 8627 | H59: 0.9821265938
A60: Hours of turbine operations, hrs | B60: 2 | G60: 0 | H60: 0
A61: Hours of heat / steam export | G61: 0 | H61: =IF(B61>0,G60/I53,"n/a") -> n/a
A62: Net Calorific Value of waste | B62: MJ/kg
A63: Abnormal Events | B63: qty. | C63: 1 | E63: 2 | G63: 3 | H63: =IF(G63>0,"yes","no") -> yes
A64: Abnormal operation | B64: hours | C64: 1 | G64: 1 | H64: =+(G64)/I53 -> 0.0001138433515
A65: Permit Breaches | B65: qty. | C65: 7 | D65: 1 | E65: 2 | F65: 1 | G65: 11 | H65: =IF(G65>0,"yes","no") -> yes

Sheet Operational Summary
A1: =+'Cover Page'!$B$29 -> Annual Performance Report 2024 | E1: =+'Cover Page'!$B$33 -> Lakeside EFW Ltd
A3: Summary of Plant Operations and Maintenance during the reporting year | K3: Notes:
A5: A1 achieved 89.9% availability, A2 89.5 % and the steam turbine 98.2 %. A1 was shutdown in August for its 18 month outage and the 2nd superheater was replaced. A2 was shutdown in September and its 2nd superheater was also replaced. Lakeside installed a new NOx control system on both lines. The system injects urea at three different levels of the furnace and is designed to inject at the optimum temperature. The system was commissioned in the 4th quarter and has been running well. New invertors for the induced draft fans were installed during the August and September outages. These are quoted as being 3.6 % more energy efficient. | K5: Include summary of key operational and/or maintenance activity undertaken in the year, such as any major component upgrades and/or replacements
A24: Summary of Residue Handling for the reporting year
A26: Material and disposal point listed below. IBA sampling follows the ESA protocol.Material sent to: Days aggregates, Transport Avenue, Brentford, TW8 9HF. APC sample quarterly sent to: OCO Technology, Central Avenue, Hallen, Suffolk, IP27 0AX Oversize/ metals M D J Light Brothers, Greystone quarry top yard, Southerham, Lewes, East Sussex, BN8 6JN | K26: Include in here a summary of residue handling regimes and destinations
A34: =+'Cover Page'!C39 -> 2024 | B34: Plant shut-downs
A35: Date | B35: Reason for shut-down | K35: Provide a very brief reason for plant shut-down e.g. "Shut-down prior to major outage"; "Emergency shut-down due to boiler tube leak" There is no need to include periods of hot-standby here (e.g. to clear feed chute hopper blockages). For clinical waste incinerators which require regular shut-downs for boiler cleaning, there is no need to record these here.
A36: 2024-01-21 | B36: A1 Tube leak, off for 109 hours.
A37: 2024-04-01 | B37: A1 Tube leak, off for 66 hours.
A38: 2024-04-07 | B38: A2 Tube leak, off for 109 hours.
A39: 2024-06-12 | B39: A2 water wall leak, off for 112 hours.
A40: 2024-07-21 | B40: Trip both lines due to 132 kV breaker fault. A1 13.1, A2 71 & turbine 49 hours.
A41: 2024-08-05 | B41: A1 outage starts 676 hours
A42: 2024-09-05 | B42: A2 outage starts 592 hours
A43: 2024-10-14 | B43: Slag chute blockage 10 hours
A44: 2024-10-24 | B44: NID tripped on rotation sensor 27 Hours
A45: 2024-11-16 | B45: Turbine shutdown for 1st bearing replacement, 67 hours.
A46: 2024-12-10 | B46: Turbine trip due to governor bearing fault, 39 hours.
A47: 2024-12-11 | B47: A1 and A2 tripped due to condensate fluctuations, A1 10 hours A2 13 hours.

Sheet Perf. Form 1
A1: =+'Cover Page'!C39 -> 2024 | B1: Annual Reporting Performance Form 1
A3: =+'Cover Page'!B31 -> Permit EPR/BT7116IW | F3: Operator: | G3: =+'Cover Page'!B37 -> Lakeside
A4: Facility: | B4: =+'Cover Page'!B33:I33 -> Lakeside EFW Ltd | F4: Form: | G4: Performance 1
A6: Reporting Period from: | D6: 2024-01-01 | F6: to: | G6: 2024-12-31
A8: =+A1 -> 2024 | B8: Annual Reporting of Waste Disposal and Recovery
A9: Waste Description | C9: Disposal Route(s) | E9: Disposal Tonnes | G9: Recovery Tonnes | I9: % / tonne of waste incinerated
A10: 1) Hazardous Wastes
A11: APC Residues | C11: R05 | G11: 12106.6 | I11: =IF((E11+G11)>0,(E11+G11)/'Operational Data'!$G$21, "-") -> 0.03031849622
A12: IBA | I12: =IF((E12+G12)>0,(E12+G12)/'Operational Data'!$G$21, "-") -> -
I13: =IF((E13+G13)>0,(E13+G13)/'Operational Data'!$G$21, "-") -> -
I14: =IF((E14+G14)>0,(E14+G14)/'Operational Data'!$G$21, "-") -> -
A15: Total Hazardous Waste | E15: =SUM(E11:F14) -> 0 | G15: =SUM(G11:H14) -> 12106.6 | I15: =IF((E15+G15)>0,(E15+G15)/'Operational Data'!$G$21, "-") -> 0.03031849622
A17: 2) Non-Hazardous Wastes
A18: IBA | C18: R11 | G18: 74491.5 | I18: =IF((E18+G18)>0,(E18+G18)/'Operational Data'!$G$21, "-") -> 0.186548681
A19: Ferrous Metal | C19: R04 | G19: 4263.46 | I19: =IF((E19+G19)>0,(E19+G19)/'Operational Data'!$G$21, "-") -> 0.01067696099
A20: Process Water | I20: =IF((E20+G20)>0,(E20+G20)/'Operational Data'!$G$21, "-") -> -
I21: =IF((E21+G21)>0,(E21+G21)/'Operational Data'!$G$21, "-") -> -
I22: =IF((E22+G22)>0,(E22+G22)/'Operational Data'!$G$21, "-") -> -
A23: Total Non-Hazardous Waste | E23: =SUM(E18:F22) -> 0 | G23: =SUM(G18:H22) -> 78754.96 | I23: =IF((E23+G23)>0,(E23+G23)/'Operational Data'!$G$21, "-") -> 0.197225642
A24: TOTAL WASTE | E24: =+E23+E15 -> 0 | G24: =+G23+G15 -> 90861.56 | I24: =IF((E24+G24)>0,(E24+G24)/'Operational Data'!$G$21, "-") -> 0.2275441382
A26: Operator’s comments :
A31: =+A1 -> 2024 | B31: Annual Reporting of Water and Other Raw Material Usage
A32: Raw Material | E32: Usage | G32: Unit | H32: Specific Usage | J32: Unit
A33: Mains Water | E33: =+'Operational Data'!G42/1000 -> 79.853 | G33: m3 | H33: =IF(E33>0,E33/'Operational Data'!$G$21,"-") -> 0.0001999754579 | J33: m3/te
A34: Total Water | E34: =+'Operational Data'!G43+'Operational Data'!G42/1000 -> 79.853 | G34: m3 | H34: =IF(E34>0,E34/'Operational Data'!$G$21,"-") -> 0.0001999754579 | J34: m3/te
A35: Urea / Ammonia | E35: =+'Operational Data'!G44 -> 60454 | G35: kg | H35: =IF(E35>0,E35/'Operational Data'!$G$21,"-") -> 0.1513946418 | J35: kg/te
A36: Activated Carbon | E36: =+'Operational Data'!G46 -> 166013 | G36: kg | H36: =IF(E36>0,E36/'Operational Data'!$G$21,"-") -> 0.4157455035 | J36: kg/te
A37: Lime / hydrated lime / Sodium Bicarb. | E37: =+'Operational Data'!G47 -> 4848560 | G37: kg | H37: =IF(E37>0,E37/'Operational Data'!$G$21,"-") -> 12.14222391 | J37: kg/te
A39: Operator’s comments :
A43: =+A31 -> 2024 | B43: Annual Reporting of other performance indicators
A44: Parameter | C44: Results by Line
C45: A1 | D45: A2 | E45: A3 | F45: A4 | G45: A5 | I45: Turbine 1 | J45: Turbine 2
A46: Operating hours for the year, hours | C46: 7896 | D46: 7860
A47: Number of periods of abnormal operation, qty.
A48: Cumulative hours of abnormal operation for this year, hours
A50: Operator’s comments :
A54: Signed: | G54: Date:

Sheet Energy Form 1
A1: =+'Cover Page'!C39 -> 2024 | B1: Annual Reporting of Energy Usage/Export
A3: =+'Cover Page'!B31 -> Permit EPR/BT7116IW | F3: Operator: | G3: =+'Cover Page'!B37 -> Lakeside
A5: Facility: | B5: =+'Cover Page'!B33:I33 -> Lakeside EFW Ltd | F5: Form: | G5: Energy 1
A7: Reporting Period from: | D7: =+'Perf. Form 1'!D6:E6 -> 2024-01-01 | F7: to: | G7: =+'Perf. Form 1'!G6:H6 -> 2024-12-31
A9: Energy Source | D9: Energy Usage | F9: Unit | G9: Specific Usage (KWh/tonne incinerated
A10: Electricity Produced | D10: =+'Operational Data'!G24 -> 288999 | F10: MWh | G10: =+'Operational Data'!H24 -> 723.7387119
A11: Electricity Imported | D11: 442 | F11: MWh | G11: =+'Operational Data'!H27 -> -
A12: Electricity Exported | D12: =+'Operational Data'!G25 -> 260296 | F12: MWh | G12: =+'Operational Data'!H25 -> 651.8579364
A13: Gas Oil | D13: 293979 | F13: Litres
A14: Steam/hot water exported | D14: =+'Operational Data'!G30 -> 0 | F14: GWh | G14: =+'Operational Data'!H30 -> -
A18: Operator’s comments :
A29: Signed: | G29: Date: | H29: 2025-01-20

Sheet Permit Compliance
A1: =+'Cover Page'!$B$29 -> Annual Performance Report 2024 | E1: =+'Cover Page'!$B$33 -> Lakeside EFW Ltd
A3: Summary of Permit Compliance
A5: Compliance with permit limits for continuously monitored pollutants
A7: The plant met its emission limits as shown in the table below:
A8: Substance | C8: Percentage time compliant during operationNote 1 | L8: Notes:
C9: Half-hourly limit | F9: Daily limit | L9: Note 1: Please report to 2 decimal places, i.e. xx.xx% Note 2: Please enter into this table any permit non-compliances that the EA has given a CCS score for. Please also enter any other non-compliances which you have notified to the EA (e.g. ELV exceedances) but which have not yet been assessed by the EA. There is no need to enter any notifications which were subsequently assessed by the EA not to be permit breaches. Note 3: Please enter information here (rather than just referencing the notifications that were sent to the EA) including where relevant the incineration line reference, pollutant and value of the measured result for any ELV exceedances.
A10: Particulates | C10: 1 | F10: 0.994
A11: Oxides of nitrogen | C11: 1 | F11: 0.984
A12: Sulphur dioxide | C12: 1 | F12: 1
A13: Carbon monoxide | C13: 100 % 95% of 10-min averages | F13: 1
A14: Total organic carbon | C14: 1 | F14: 1
A15: Hydrogen chloride | C15: 1 | F15: 1
A16: Hydrogen fluoride | C16: 1 | F16: 1
C17: xx.xx % | F17: xx.xx %
A19: Summary of non-compliances under the permit Note 2
A20: Date | B20: Summary of non-compliance Note 3 | D20: Reason | G20: Measures taken to prevent reoccurrence | H20: CCS score if applicable*
H21: Impact | I21: Root cause
A22: 2024-02-08 | B22: SO2 752.04 mg/m3 1/2 Hourly | D22: Feed of shredded material | G22: Waste source stopped
A23: 2024-02-13 | B23: Particulate 47.03, 44.84 mg/m3 | D23: Bag failure | G23: Bags capped
A24: 2024-03-12 | B24: NOx 180.94 mg/m3 Daily average | D24: New limit difficult to achieve | G24: New plant install | H24: E1 | I24: C3
A25: 2024-03-13 | B25: NOx 180.77 mg/m3 Daily average | D25: New limit difficult to achieve | G25: New plant install | H25: E1 | I25: C3
A26: 2024-03-14 | B26: NOx 201.61 mg/m3 Daily average | D26: New limit difficult to achieve | G26: New plant install | H26: E1 | I26: C3
A27: 2024-03-15 | B27: NOx 181.32 mg/m3 Daily average | D27: New limit difficult to achieve | G27: New plant install | H27: E1 | I27: C3
A28: 2024-03-30 | B28: NOx 188.5 mg/m3 Daily average | D28: New limit difficult to achieve | G28: New plant install | H28: E1 | I28: C3
A29: 2024-04-06 | B29: NOx 189.41 mg/m3 Daily average | D29: New limit difficult to achieve | G29: New plant install | H29: E1 | I29: C3
A30: 2024-04-30 | B30: CO 364.34 mg/m3 10 Min | D30: High CV waste and cylinder explosions | G30: Air increased | H30: E1 | I30: C4
A31: 2024-07-24 | B31: VOC 34.6, 26.74 mg/m3 1/2 Hourly | D31: SSE plant trip slow start up | G31: Sorbent sequence started | H31: E1 | I31: C4
A32: 2024-09-28 | B32: Particulate 5.02 mg/m3 Daily avg | D32: Bag failure | G32: Bag capped | H32: E1 | I32: C4
A33: 2024-09-29 | B33: Particulate 6.05 mg/m3 Daily avg | D33: Bag failure | G33: Bag capped | H33: E1 | I33: C4
A34: 2024-09-30 | B34: CO 10 Min avg 154.5 - 594.92 7 spikes | D34: High CV waste and cylinder explosions | G34: Air increased | H34: E1 | I34: C4
A35: 2024-10-16 | B35: SO2 220.21 mg/m3 1/2 Hourly | D35: Dampers in manual | G35: Dampers calibrated | H35: N/A | I35: N/A
A36: *If the Environment Agency (EA) has given a Compliance Classification Scheme (CCS) score due to a permit non-compliance it should be entered here (CCS4 = No impact; CCS3 = Minor impact; CCS2 = Significant impact; CCS1 = Major impact). If the EA has not yet assessed a non-compliance which you have notified to them, these columns should be left blank. Enter N/A if no score was given for the root cause.
A37: Summary of any complaints received and actions to taken to resolve them.
A38: Date | B38: Summary of complaint [including Line/Reference] | E38: Reason (including whether substantiated by the operator or the EA) | H38: Measures taken to prevent reoccurrence

Sheet Improvements
A1: =+'Cover Page'!$B$29 -> Annual Performance Report 2024 | E1: =+'Cover Page'!$B$33 -> Lakeside EFW Ltd
A3: Summary of Plant Improvements
A5: Summary of any efficiency improvements that have been completed within the year.
A6: New inverters were installed for the induced draft (I.D.) fans quoted to be 3.6 % more energy efficient. Superheater 2 was replaced after exceeding the end of its useful life.
A16: Summary of any permit improvement conditions that have been completed within the year and the resulting environmental benefits.
A17: With the introduction of the new permit limits on Nox, dropping from 200 mg/m3 to 180 mg/m3, Lakeside installed a new system on each line, designed to switch the injection position to the ideal position in the furnace to achieve an optimal reaction. Due to the temperatures that the furnaces operate at, the decision was taken to replace ammonia with urea, which reacts at a higher temperature. The system is now fully installed and is working as expected. Reagent use is optimised and NOx is easily achieving the lower emission limit.
A27: Summary of any changes to the plant or operating techniques which required a variation to the permit and a summary of the resulting environmental impact.
A28: No permit variations.
A38: Summary of any other improvements made to the plant or planned to be made and a summary of the resulting environmental benefits.
A39: Inverters will be replaced on some of the larger pumps and equipment with expected energy savings. C14 analysers have been installed on each line to measure the biogenic content of the flue gas, to calculate the biogenic Carbon in the waste incinerated.

Sheet Public Liasion
A1: =+'Cover Page'!$B$29 -> Annual Performance Report 2024 | E1: =+'Cover Page'!$B$33 -> Lakeside EFW Ltd
A3: Details of Public & Stakeholder Liaison
A5: Summary of events held during the reporting year.
A6: Date | C6: Description
A16: List of events planned for next year
A17: Date | C17: Description
A29: If you wish to be involved in the public liaison programme, please contact martin.rogers_uk@lakesideefw.co.uk

Sheet CO2 N2O
A1: =+'Cover Page'!$B$29 -> Annual Performance Report 2024 | C1: =+'Cover Page'!$B$33 -> Lakeside EFW Ltd
A3: Carbon dioxide emissions and biogenic content of waste inputs | F3: Notes:
A5: Carbon dioxide emissions (all types of plant)
B6: Annual mass of carbon dioxide released | C6: tonnes | D6: 398109
B7: Annual mass of carbon dioxide released per tonne of waste burned | C7: t CO2 / t waste | D7: 0.984
B8: Annual mass of carbon dioxide released per MWh of energy exported | C8: t CO2 / MWh export | D8: 1.378
B9: Description of how annual carbon dioxide mass emission has been calculated. See Note 1 | C9: Using calibrated monitor CO2 to EN14181 and flow to BS EN 16911-2 | F9: Note 1: All permits require operators to continuously monitor CO2 to EN14181 and flow to BS EN 16911-2 (unless otherwise agreed in writing). Operators must therefore use the results from these instruments to calculate their annual CO2 emissions. Where an operator does not have a flow meter calibrated to BS EN 16911-2, the averaged flow measurement from that year's periodic monitoring can be used instead. If the plant does not have calibrated CO2 CEMS, a suitably justified emissions factor can be used.
A10: Nitrous oxide emissions (only plants which use ammonia or urea to abate NOx emissions)
B11: Annual mass emissions of nitrous oxide | C11: tonnes N2O | D11: 5.47
B12: Description of how annual nitrous oxide mass emission has been calculated See Note 2 | C12: Using calibrated monitor CO2 to EN14181 and flow to BS EN 16911-2 | F12: Note 2: All permits require operators to continuously monitor N2O to EN14181 and flow to BS EN 16911-2, unless otherwise agreed in writing. Operators must therefore use the results from these instruments to calculate their annual N2O emissions. Where an operator does not have a flow meter calibrated to BS EN 16911-2, the averaged flow measurement from periodic monitoring can be used instead. If the plant does not have calibrated N2O CEMS, data from periodic monitoring or a suitably justified emissions factor can be used instead.
A13: Total annual carbon dioxide + nitrous oxide emissions. See Note 3. | C13: tonnes CO2e | D13: 399559 | F13: Note 3: Total annual carbon dioxide and nitrous oxide emissions reported as carbon dioxide equivalent where 1 tonne nitrous oxide is equivalent to 265 tonnes carbon dioxide.
A14: Biogenic CO2 emissions (See Note 4) | F14: Note 4: Only plants combusting residual municipal waste, refuse derived fuel or solid recovered fuel need complete this section.
B15: Percentage of total carbon dioxide emissions arising from biogenic waste | C15: % | D15: 0.585
B16: No. of measurements undertaken | C16: Number | D16: 14C from 1/10/24 to 10/12/24. 2 monthly readings on each line.
B17: Description of how percentage biogenic carbon dioxide emissions have been measured or calculated. See Note 5 | C17: C14 analysers installed on each line. Line A1 reading 55 % biogenic and line 2 reading 60 % average over a two month period. | F17: Note 5: The results from C14 sampling should be used if this is carried out at the plant (either via an installed sampler or from spot samples). Otherwise, as an approximation (and in lieu of any more accurate metrics which may be developed in future), the measured or estimated biogenic fraction by net calorific value (see Note 6) can be assumed to be the same as the biogenic CO2 fraction of the total CO2 emissions from the plant.
A18: Biogenic fraction of waste feedstock (See Note 4)
B19: Yearly average biogenic percentage of the waste by net calorific value (NCV) | C19: %
B20: Description of how biogenic percentage (by NCV) has been calculated or estimated. See Note 6 | F20: Note 6: If C14 sampling is carried out at the plant, the methodology set out in the embedded document entitled "Renewable Energy Association Energy Content of Fuels - Description of Method" embedded below can be used to calculate the biogenic percentage by net calorific value. Otherwise, data from waste sampling or BIOMA software can be used; or if none of these are available, an estimated figure with justification or a figure assumed on the basis of up-to-date industry data can be used.
B21: Yearly average biogenic percentage of the waste by mass | C21: %
B22: If waste sampling undertaken, no. of samples used to ascertain average biogenic percentages above | C22: Number
B23: Description of how biogenic percentage (by mass) has been calculated or estimated. See Note 7 | F23: Note 7: Where available, data from waste sampling should be used; otherwise, an estimated figure with justification can be used, or a figure assumed on the basis of up-to-date industry data.
B25: Comments:
B26: Two Amesa B analysers installed on each line to measure14C

Sheet Residue Quality
A1: =+'Cover Page'!$B$29 -> Annual Performance Report 2024 | E1: =+'Cover Page'!$B$33 -> Lakeside EFW Ltd
A3: Residue Quality Monitoring Requirements
A5: Summary of monitoring undertaken and compliance
A6: Bottom ash follows the ESA protocol and two samples are taken every month.
A8: APC is sampled at the beginning of each quarter, with a composite sample for the month, made up of each load that goes out, during that month.
A13: Commentary on any specific events
A14: Date & Event | C14: Description
A15: 2024-09-18 | C15: Ash hazardous on HP14 for high lead content. This was one sample hazardous in a rolling 24 sample analysis.
A27: Residue Quality Monitoring Results
A28: Parameter (unit) | C28: Limit* | D28: Normal Operation
D29: Bottom ash | F29: APC Residues
A30: Loss on Ignition (average %) | C30: <5% | D30: 0.68
A31: Total Organic Carbon (average %) | C31: <3%
A32: No. of Assessments Undertaken | C32: --- | D32: 24 | F32: 4
A33: No. of Hazardous Results | C33: --- | D33: 1
A34: * The permit will specify a limit of either 5% loss on ignition or 3% total organic carbon. If both are measured anyway, please enter the results here, even where the limit does not apply.
A36: Comments :

Sheet Water
A1: =+'Cover Page'!$B$29 -> Annual Performance Report 2024 | E1: =+'Cover Page'!$B$33 -> Lakeside EFW Ltd
A3: Emissions to Water
A5: Summary of monitoring undertaken and compliance
A6: All water generated on site is used in the process to fill riddling conveyors. Slag extractors etc. No trade effluent sent to foul sewer during 2024.
A13: Commentary on any specific events
A14: Date & Event | C14: Description
A22: Emissions to Water / Sewer
A23: Parameter | D23: Monitoring Frequency | F23: Limit | G23: Target | H23: Max. | I23: Average

Sheet Air (periodic)
A1: =+'Cover Page'!$B$29 -> Annual Performance Report 2024 | E1: =+'Cover Page'!$B$33 -> Lakeside EFW Ltd
A3: Emissions to Air (periodically monitored)
A5: Summary of monitoring undertaken, standards used and compliance | K5: Notes:
A6: HF CEN TS 17340, Cd Th & Metals BS EN 14385, Hg BS EN 13211, Dioxins/ Furans (I-TEQ) BS EN 1948 Parts 1 - 3, PAHs BS ISO 11338-1 and BS ISO 1138-2 | K6: Template may require adjustment for any bespoke monitoring requirements of permit - please also check that all default ELV values, reference periods and the stated oxygen reference value match those for your plant, and edit if necessary!
A9: Results of emissions to air that are periodically monitored - oxygen reference 11%
A10: Substance | C10: Ref. Period | D10: Emission Limit Value | F10: Average | K10: User to add additional tables as necessary, depending on whether quarterly or bi-annual reporting is required for the compliance year
F11: A1 | G11: A2 | H11: A3 | I11: A4 | J11: A5
A12: Hydrogen fluoride | C12: 1 hr | D12: 1 mg/m3 | F12: 0.56 | G12: 0.195
A13: Cd and Tl and their compounds | C13: 0.5-8hrs | D13: 0.02 mg/m3 | F13: 0.001 | G13: 0.001
A14: Hg and its compounds | C14: 0.5-8hrs | D14: 0.02 mg/m3 | F14: 0.0049 | G14: 0.0013
A15: Sb, As, Pb, Cr, Co, Cu, Mn, Ni, V and their compounds | C15: 0.5-8hrs | D15: 0.3 mg/m3 | F15: 0.037 | G15: 0.048
A16: Dioxins & Furans (I-TEQ) | C16: 6-8hrs | D16: 0.06 ng/m3 | F16: 0.014 | G16: 0.02
A17: PCBs (WHO-TEQ Humans / Mammals) | C17: 6-8hrs | D17: None set ng/m3 | F17: 0.0746 | G17: 0.0276
A18: PCBs (WHO-TEQ Fish) | C18: 6-8hrs | D18: None set ng/m3 | F18: 0.0033 | G18: 0.0023
A19: PCBs (WHO-TEQ Birds) | C19: 6-8hrs | D19: None set ng/m3 | F19: 0.0676 | G19: 0.0266
A20: Dioxins & Furans (WHO-TEQ Humans / Mammals) | C20: 6-8hrs | D20: None set ng/m3 | F20: 0.0141 | G20: 0.0186
A21: Dioxins & Furans (WHO-TEQ Fish) | C21: 6-8hrs | D21: None set ng/m3 | F21: 0.0146 | G21: 0.0205
A22: Dioxins & Furans (WHO-TEQ Birds) | C22: 6-8hrs | D22: None set ng/m3 | F22: 0.0256 | G22: 0.0411
A23: Anthanthrene | C23: 6-8hrs | D23: None set µg/m3 | F23: <0.0011 | G23: <0.0013
A24: Benzo(a)anthracene | C24: 6-8hrs | D24: None set µg/m3 | F24: <0.0011 | G24: 0
A25: Benzo(a)pyrene | C25: 6-8hrs | D25: None set µg/m3 | F25: <0.0011 | G25: 0
A26: Benzo(b)fluoranthene | C26: 6-8hrs | D26: None set µg/m3 | F26: <0.0011 | G26: <0.0013
A27: Benzo(b)naptho(2,1-d) thiophene | C27: 6-8hrs | D27: None set µg/m3 | F27: <0.0011 | G27: 0
A28: Benzo(c)phenanthrene | C28: 6-8hrs | D28: None set µg/m3 | F28: <0.0011 | G28: 0
A29: Benzo(ghi)perylene | C29: 6-8hrs | D29: None set µg/m3 | F29: <0.0011 | G29: <0.0013
A30: Benzo(k)fluoranthene | C30: 6-8hrs | D30: None set µg/m3 | F30: <0.0011 | G30: <0.0013
A31: Cholanthrene | C31: 6-8hrs | D31: None set µg/m3 | F31: <0.0011 | G31: <0.0013
A32: Chrysene | C32: 6-8hrs | D32: None set µg/m3 | F32: <0.0011 | G32: 0.01
A33: Cyclopenta(cd)pyrene | C33: 6-8hrs | D33: None set µg/m3 | F33: <0.0011 | G33: <0.0013
A34: Dibenzo(ai)pyrene | C34: 6-8hrs | D34: None set µg/m3 | F34: <0.0011 | G34: <0.0013
A35: Dibenzo(ah)anthracene | C35: 6-8hrs | D35: None set µg/m3 | F35: <0.0011 | G35: <0.0013
A36: Fluoranthene | C36: 6-8hrs | D36: None set µg/m3 | F36: 0.01 | G36: 0.07
A37: Indeno(123-cd) pyrene | C37: 6-8hrs | D37: None set µg/m3 | F37: <0.0011 | G37: <0.0013
A38: Naphthalene | C38: 6-8hrs | D38: None set µg/m3 | F38: 0.1 | G38: 0.27
A39: Comments :

Sheet Air (CEMS)
A1: =+'Cover Page'!$B$29 -> Annual Performance Report 2024 | I1: =+'Cover Page'!$B$33 -> Lakeside EFW Ltd
A3: Emissions to Air (continuously monitored)
N4: Notes:
A5: Summary of monitoring undertaken, standards used and compliance | N5: Template may require adjustment for any bespoke monitoring requirements of permit
A6: Contiuous emissions monitoring method EN 14181. | N6: Please check that all default ELV values match those for your plant and edit if necessary!
N7: Report to 1 decimal place
A11: Results of emissions to air that are continuously monitored (maximum and average values for each line) - oxygen reference 11%
A12: Substance | B12: Reference Period | C12: Emission Limit Value | D12: A1 | F12: A2 | H12: A3 | J12: A4 | L12: A5
D13: Max. | E13: Avg. | F13: Max. | G13: Avg. | H13: Max. | I13: Avg. | J13: Max. | K13: Avg. | L13: Max. | M13: Avg.
A14: Oxides of nitrogen | B14: Daily mean | C14: 180 mg/m3 | D14: 189.41 | E14: 155.09 | F14: 201.67 | G14: 150.85
B15: ½ hourly mean | C15: 400 mg/m3 | D15: 332.46 | E15: 155.14 | F15: 323.32 | G15: 149.29
A16: Particulates | B16: Daily mean | C16: 5 mg/m3 | D16: 6.05 | E16: 0.7 | F16: 4.12 | G16: 0.69
B17: ½ hourly mean | C17: 30 mg/m3 | D17: 47.03 | E17: 0.71 | F17: 25.69 | G17: 0.45
A18: Total Organic Carbon | B18: Daily mean | C18: 10 mg/m3 | D18: 1.12 | E18: 0.26 | F18: 1.45 | G18: 0.38
B19: ½ hourly mean | C19: 20 mg/m3 | D19: 19.66 | E19: 0.27 | F19: 34.6 | G19: 1.75
A20: Hydrogen chloride | B20: Daily mean | C20: 8 mg/m3 | D20: 7.12 | E20: 4.34 | F20: 7.09 | G20: 3.27
B21: ½ hourly mean | C21: 60 mg/m3 | D21: 56.03 | E21: 4.36 | F21: 13.15 | G21: 3.43
A22: Sulphur dioxide | B22: Daily mean | C22: 40 mg/m3 | D22: 20 | E22: 6.69 | F22: 5.75 | G22: 15.07
B23: ½ hourly mean | C23: 200 mg/m3 | D23: 656.96 | E23: 6.71 | F23: 69.92 | G23: 6.1
A24: Carbon monoxide | B24: Daily mean | C24: 50 mg/m3 | D24: 36.26 | E24: 5.84 | F24: 27.71 | G24: 8.29
B25: 95%ile 10-min avg * | C25: 150 mg/m3 * | D25: 1789.94 | E25: 66.43 | F25: 9718.97 | G25: 105.63
A26: Ammonia | B26: Daily mean | C26: 15 mg/m3 | D26: 13.11 | E26: 0.6 | F26: 8.92 | G26: 0.27
A27: * = delete as appropriate, depending on whether your plant has half-hourly or 10-min CO ELVs
A28: Comments :

Sheet HCl
A1: =+'Cover Page'!$B$29 -> Annual Performance Report 2024 | E1: =+'Cover Page'!$B$33 -> Lakeside EFW Ltd
A3: Monitoring of Hydrogen Chloride emissions | D3: Whole Installation | G3: See Notes in Cell Q3 | J3: =+A3 -> Monitoring of Hydrogen Chloride emissions | N3: Per Combustion Line | Q3: Notes:
Q4: User to add logic to complete Whole installation, Table A5:G18. From the data in Per Combustion Line, Table J6:O79, subject to No. of lines installed
A5: =+'Cover Page'!C39 -> 2024 | B5: 1/2 Hourly Reference Periods | E5: Daily Reference Periods
A6: mg/Nm3 | B6: 1/2 hourly HCl ELV | C6: Monthly mean of half-hourly averages | D6: Highest half- hourly average | E6: Daily HCl ELV | F6: Monthly mean of daily averages | G6: Highest daily average | J6: =+A5 -> 2024 | K6: mg/Nm3 | L6: Monthly mean of half-hourly averages | M6: Highest half- hourly average | N6: Monthly mean of daily averages | O6: Highest daily average
A7: Jan | B7: 60 | C7: =(L7+L22)/2 -> 3.965 | D7: =(M7+M22)/2 -> 14.265 | E7: 8 | F7: =(N7+N22)/2 -> 3.97 | G7: =(O7+O22)/2 -> 5.345 | J7: A1 | K7: Jan | L7: 3.82 | M7: 21.17 | N7: 3.83 | O7: 4.58
A8: Feb | B8: 60 | C8: =(L8+L23)/2 -> 4.145 | D8: 9.275 | E8: 8 | F8: =(N8+N23)/2 -> 4.145 | G8: 6.035 | K8: Feb | L8: 3.68 | M8: 7.01 | N8: 3.68 | O8: 4.98
A9: Mar | B9: 60 | C9: 4.55 | D9: 10.655 | E9: 8 | F9: 4.55 | G9: 6.455 | K9: Mar | L9: 4.82 | M9: 9.4 | N9: 4.82 | O9: 6.64 | Q9: Whole Installation table A5:G18:
A10: Apr | B10: 60 | C10: 3.425 | D10: 11.68 | E10: 8 | F10: 3.36 | G10: 4.865 | K10: Apr | L10: 4.18 | M10: 14.22 | N10: 4.09 | O10: 5.8 | Q10: Mean: for 1/2 hourly and daily periods calculate mean of values across all operational combustion lines for the month
A11: May | B11: 60 | C11: 3.715 | D11: 7.84 | E11: 8 | F11: 3.715 | G11: 4.35 | K11: May | L11: 4.2 | M11: 6.53 | N11: 4.2 | O11: 4.73
A12: Jun | B12: 60 | C12: 2.93 | D12: 9.59 | E12: 8 | F12: 2.915 | G12: 3.875 | K12: Jun | L12: 3.65 | M12: 5.03 | N12: 3.65 | O12: 4.2
A13: Jul | B13: 60 | C13: 3.34 | D13: 52.945 | E13: 8 | F13: 3.11 | G13: 4.275 | K13: Jul | L13: 4.04 | M13: 56.03 | N13: 3.96 | O13: 5.24 | Q13: Maximum: for 1/2 hourly and daily periods use the highest value across all operational combustion lines for the month
A14: Aug | B14: 60 | C14: 4.785 | D14: 10.555 | E14: 8 | F14: 4.765 | G14: 5.515 | K14: Aug | L14: 6.03 | M14: 7.97 | N14: 5.99 | O14: 6.42
A15: Sep | B15: 60 | C15: 4.505 | D15: 12.895 | E15: 8 | F15: 3.84 | G15: 4.395 | K15: Sep | L15: 3.85 | M15: 10.92 | N15: 3.81 | O15: 4.5
A16: Oct | B16: 60 | C16: 3.605 | D16: 10.91 | E16: 8 | F16: 3.555 | G16: 5.65 | K16: Oct | L16: 4.17 | M16: 8.67 | N16: 4.19 | O16: 6.85
A17: Nov | B17: 60 | C17: 4.315 | D17: 9.135 | E17: 8 | F17: 4.315 | G17: 6.935 | K17: Nov | L17: 5.6 | M17: 9.5 | N17: 5.6 | O17: 7.12
A18: Dec | B18: 60 | C18: 3.45 | D18: 9.515 | E18: 8 | F18: 3.44 | G18: 4.64 | K18: Dec | L18: 4.28 | M18: 12.79 | N18: 4.26 | O18: 6.11
K19: Annual | L19: =AVERAGE(L7:L18) -> 4.36 | M19: =MAX(M7:M18) -> 56.03 | N19: =AVERAGE(N7:N18) -> 4.34 | O19: =MAX(O7:O18) -> 7.12
J21: =+A5 -> 2024 | K21: mg/Nm3 | L21: Monthly mean of half-hourly averages | M21: Highest half- hourly average | N21: Monthly mean of daily averages | O21: Highest daily average
J22: A2 | K22: Jan | L22: 4.11 | M22: 7.36 | N22: 4.11 | O22: 6.11
K23: Feb | L23: 4.61 | M23: 11.54 | N23: 4.61 | O23: 7.09
K24: Mar | L24: 4.28 | M24: 11.91 | N24: 4.28 | O24: 6.27
K25: Apr | L25: 2.67 | M25: 9.14 | N25: 2.63 | O25: 3.93
K26: May | L26: 3.23 | M26: 9.15 | N26: 3.23 | O26: 3.97
K27: Jun | L27: 2.21 | M27: 14.15 | N27: 2.18 | O27: 3.55
K28: Jul | L28: 2.64 | M28: 49.86 | N28: 2.26 | O28: 3.31
K29: Aug | L29: 3.54 | M29: 13.14 | N29: 3.54 | O29: 4.61
K30: Sep | L30: 5.16 | M30: 14.87 | N30: 3.87 | O30: 4.29
K31: Oct | L31: 3.04 | M31: 13.15 | N31: 2.92 | O31: 4.45
K32: Nov | L32: 3.03 | M32: 8.77 | N32: 3.03 | O32: 6.75
K33: Dec | L33: 2.62 | M33: 6.24 | N33: 2.62 | O33: 3.17
K34: Annual | L34: =AVERAGE(L22:L33) -> 3.428333333 | M34: =MAX(M22:M33) -> 49.86 | N34: =AVERAGE(N22:N33) -> 3.273333333 | O34: =MAX(O22:O33) -> 7.09
J36: =+A5 -> 2024 | K36: mg/Nm3 | L36: Monthly mean of half-hourly averages | M36: Highest half- hourly average | N36: Monthly mean of daily averages | O36: Highest daily average
J37: A3 | K37: Jan
K38: Feb
K39: Mar
K40: Apr
K41: May
K42: Jun
K43: Jul
K44: Aug
K45: Sep
K46: Oct
K47: Nov
A48: Comments : | K48: Dec
K49: Annual | L49: =AVERAGE(L37:L48) ->  | M49: =MAX(M37:M48) -> 0 | N49: =AVERAGE(N37:N48) ->  | O49: =MAX(O37:O48) -> 0
J51: =+A5 -> 2024 | K51: mg/Nm3 | L51: Monthly mean of half-hourly averages | M51: Highest half- hourly average | N51: Monthly mean of daily averages | O51: Highest daily average
J52: A4 | K52: Jan
K53: Feb
K54: Mar
K55: Apr
K56: May
K57: Jun
K58: Jul
K59: Aug
K60: Sep
K61: Oct
K62: Nov
K63: Dec
K64: Annual | L64: =AVERAGE(L52:L63) ->  | M64: =MAX(M52:M63) -> 0 | N64: =AVERAGE(N52:N63) ->  | O64: =MAX(O52:O63) -> 0
J66: =+A5 -> 2024 | K66: mg/Nm3 | L66: Monthly mean of half-hourly averages | M66: Highest half- hourly average | N66: Monthly mean of daily averages | O66: Highest daily average
J67: A5 | K67: Jan
K68: Feb
K69: Mar
K70: Apr
K71: May
K72: Jun
K73: Jul
K74: Aug
K75: Sep
K76: Oct
K77: Nov
K78: Dec
K79: Annual | L79: =AVERAGE(L67:L78) ->  | M79: =MAX(M67:M78) -> 0 | N79: =AVERAGE(N67:N78) ->  | O79: =MAX(O67:O78) -> 0

Sheet SO2
A1: =+'Cover Page'!$B$29 -> Annual Performance Report 2024 | E1: =+'Cover Page'!$B$33 -> Lakeside EFW Ltd
A3: Monitoring of Sulphur dioxide emissions | D3: Whole Installation | G3: See Notes in Cell Q3 | J3: =+A3 -> Monitoring of Sulphur dioxide emissions | N3: Per Combustion Line | Q3: Notes:
Q4: User to add logic to complete Whole installation, Table A5:G18. From the data in Per Combustion Line, Table J6:O79, subject to No. of lines installed
A5: =+'Cover Page'!C39 -> 2024 | B5: 1/2 Hourly Reference Periods | E5: Daily Reference Periods
A6: mg/Nm3 | B6: 1/2 hourly SO2 ELV | C6: Monthly mean of half-hourly averages | D6: Highest half- hourly average | E6: Daily SO2 ELV | F6: Monthly mean of daily averages | G6: Highest daily average | J6: =+A5 -> 2024 | K6: mg/Nm3 | L6: Monthly mean of half-hourly averages | M6: Highest half- hourly average | N6: Monthly mean of daily averages | O6: Highest daily average
A7: Jan | B7: 200 | C7: =(L7+L22)/2 -> 5.035 | D7: =(M7+M22)/2 -> 13.445 | E7: 40 | F7: =(N7+N22)/2 -> 5.02 | G7: =(O7+O22)/2 -> 8.525 | J7: A1 | K7: Jan | L7: 4.75 | M7: 16.19 | N7: 4.72 | O7: 7.81
A8: Feb | B8: 200 | C8: =(L8+L23)/2 -> 4.29 | D8: 336.215 | E8: 40 | F8: =(N8+N23)/2 -> 4.29 | G8: 14.85 | K8: Feb | L8: 3.58 | M8: 656.96 | N8: 3.58 | O8: 20
A9: Mar | B9: 200 | C9: 6.515 | D9: 19.065 | E9: 40 | F9: 6.515 | G9: 10.64 | K9: Mar | L9: 6.27 | M9: 16.66 | N9: 6.27 | O9: 10.04 | Q9: Whole Installation table A5:G18:
A10: Apr | B10: 200 | C10: 8.395 | D10: 45.625 | E10: 40 | F10: 8.375 | G10: 12.86 | K10: Apr | L10: 8.5 | M10: 50.49 | N10: 8.43 | O10: 14.66 | Q10: Mean: for 1/2 hourly and daily periods calculate mean of values across all operational combustion lines for the month
A11: May | B11: 200 | C11: 6.015 | D11: 21.025 | E11: 40 | F11: 6.02 | G11: 11.86 | K11: May | L11: 7.54 | M11: 16.62 | N11: 7.54 | O11: 10.62
A12: Jun | B12: 200 | C12: 6.43 | D12: 34.53 | E12: 40 | F12: 6.62 | G12: 12.11 | K12: Jun | L12: 9.63 | M12: 18.68 | N12: 9.63 | O12: 13.78
A13: Jul | B13: 200 | C13: 6.885 | D13: 34.505 | E13: 40 | F13: 6.55 | G13: 12.12 | K13: Jul | L13: 9.47 | M13: 19.66 | N13: 9.52 | O13: 14.87 | Q13: Maximum: for 1/2 hourly and daily periods use the highest value across all operational combustion lines for the month
A14: Aug | B14: 200 | C14: 6.29 | D14: 10.7 | E14: 40 | F14: 6.285 | G14: 6.785 | K14: Aug | L14: 6.66 | M14: 7.89 | N14: 6.65 | O14: 6.77
A15: Sep | B15: 200 | C15: 7.745 | D15: 45.865 | E15: 40 | F15: 5.84 | G15: 7.15 | K15: Sep | L15: 6.39 | M15: 21.81 | N15: 6.37 | O15: 8.2
A16: Oct | B16: 200 | C16: 6.885 | D16: 131.34 | E16: 40 | F16: 6.835 | G16: 13.08 | K16: Oct | L16: 6.15 | M16: 211.3 | N16: 6.05 | O16: 11.09
A17: Nov | B17: 200 | C17: 6.075 | D17: 17.58 | E17: 40 | F17: 6.075 | G17: 7.955 | K17: Nov | L17: 5.7 | M17: 21.67 | N17: 5.7 | O17: 6.81
A18: Dec | B18: 200 | C18: 6.265 | D18: 26.01 | E18: 40 | F18: 6.245 | G18: 7.625 | K18: Dec | L18: 5.87 | M18: 18.25 | N18: 5.84 | O18: 6.92
K19: Annual | L19: =AVERAGE(L7:L18) -> 6.709166667 | M19: =MAX(M7:M18) -> 656.96 | N19: =AVERAGE(N7:N18) -> 6.691666667 | O19: =MAX(O7:O18) -> 20
J21: =+A5 -> 2024 | K21: mg/Nm3 | L21: Monthly mean of half-hourly averages | M21: Highest half- hourly average | N21: Monthly mean of daily averages | O21: Highest daily average
J22: A2 | K22: Jan | L22: 5.32 | M22: 10.7 | N22: 5.32 | O22: 9.24
K23: Feb | L23: 5 | M23: 15.47 | N23: 5 | O23: 9.7
K24: Mar | L24: 6.76 | M24: 21.47 | N24: 6.76 | O24: 11.24
K25: Apr | L25: 8.29 | M25: 40.76 | N25: 8.32 | O25: 11.06
K26: May | L26: 4.49 | M26: 25.43 | N26: 4.5 | O26: 13.1
K27: Jun | L27: 3.23 | M27: 50.38 | N27: 3.61 | O27: 10.44
K28: Jul | L28: 4.3 | M28: 49.35 | N28: 3.58 | O28: 9.37
K29: Aug | L29: 5.92 | M29: 13.51 | N29: 5.92 | O29: 6.8
K30: Sep | L30: 9.1 | M30: 69.92 | N30: 5.31 | O30: 6.1
K31: Oct | L31: 7.62 | M31: 51.38 | N31: 7.62 | O31: 15.07
K32: Nov | L32: 6.45 | M32: 13.49 | N32: 6.45 | O32: 9.1
K33: Dec | L33: 6.66 | M33: 33.77 | N33: 6.65 | O33: 8.33
K34: Annual | L34: =AVERAGE(L22:L33) -> 6.095 | M34: =MAX(M22:M33) -> 69.92 | N34: =AVERAGE(N22:N33) -> 5.753333333 | O34: =MAX(O22:O33) -> 15.07
J36: =+A5 -> 2024 | K36: mg/Nm3 | L36: Monthly mean of half-hourly averages | M36: Highest half- hourly average | N36: Monthly mean of daily averages | O36: Highest daily average
J37: A3 | K37: Jan
K38: Feb
K39: Mar
K40: Apr
K41: May
K42: Jun
K43: Jul
K44: Aug
K45: Sep
K46: Oct
K47: Nov
A48: Comments : | K48: Dec
K49: Annual | L49: =AVERAGE(L37:L48) ->  | M49: =MAX(M37:M48) -> 0 | N49: =AVERAGE(N37:N48) ->  | O49: =MAX(O37:O48) -> 0
J51: =+A5 -> 2024 | K51: mg/Nm3 | L51: Monthly mean of half-hourly averages | M51: Highest half- hourly average | N51: Monthly mean of daily averages | O51: Highest daily average
J52: A4 | K52: Jan
K53: Feb
K54: Mar
K55: Apr
K56: May
K57: Jun
K58: Jul
K59: Aug
K60: Sep
K61: Oct
K62: Nov
K63: Dec
K64: Annual | L64: =AVERAGE(L52:L63) ->  | M64: =MAX(M52:M63) -> 0 | N64: =AVERAGE(N52:N63) ->  | O64: =MAX(O52:O63) -> 0
J66: =+A5 -> 2024 | K66: mg/Nm3 | L66: Monthly mean of half-hourly averages | M66: Highest half- hourly average | N66: Monthly mean of daily averages | O66: Highest daily average
J67: A5 | K67: Jan
K68: Feb
K69: Mar
K70: Apr
K71: May
K72: Jun
K73: Jul
K74: Aug
K75: Sep
K76: Oct
K77: Nov
K78: Dec
K79: Annual | L79: =AVERAGE(L67:L78) ->  | M79: =MAX(M67:M78) -> 0 | N79: =AVERAGE(N67:N78) ->  | O79: =MAX(O67:O78) -> 0

Sheet NOx
A1: =+'Cover Page'!$B$29 -> Annual Performance Report 2024 | E1: =+'Cover Page'!$B$33 -> Lakeside EFW Ltd
A3: Monitoring of Oxides of Nitrogen emissions | D3: Whole Installation | G3: See Notes in Cell Q3 | J3: =+A3 -> Monitoring of Oxides of Nitrogen emissions | N3: Per Combustion Line | Q3: Notes:
Q4: User to add logic to complete Whole installation, Table A5:G18. From the data in Per Combustion Line, Table J6:O79, subject to No. of lines installed
A5: =+'Cover Page'!C39 -> 2024 | B5: 1/2 Hourly Reference Periods | E5: Daily Reference Periods
A6: mg/Nm3 | B6: 1/2 hourly NOx ELV | C6: Monthly mean of half-hourly averages | D6: Highest half- hourly average | E6: Daily NOx ELV | F6: Monthly mean of daily averages | G6: Highest daily average | J6: =+A5 -> 2024 | K6: mg/Nm3 | L6: Monthly mean of half-hourly averages | M6: Highest half- hourly average | N6: Monthly mean of daily averages | O6: Highest daily average
A7: Jan | B7: 400 | C7: =(L7+L22)/2 -> 117.285 | D7: =(M7+M22)/2 -> 196.935 | E7: 180 | F7: =(N7+N22)/2 -> 117.24 | G7: =(O7+O22)/2 -> 146.05 | J7: A1 | K7: Jan | L7: 123.94 | M7: 191.9 | N7: 123.85 | O7: 139.08
A8: Feb | B8: 400 | C8: =(L8+L23)/2 -> 115.775 | D8: 192.93 | E8: 180 | F8: =(N8+N23)/2 -> 115.775 | G8: 132.58 | K8: Feb | L8: 125.19 | M8: 171.87 | N8: 125.19 | O8: 133.1
A9: Mar | B9: 400 | C9: 160.055 | D9: 290.865 | E9: 180 | F9: 160.06 | G9: 191.305 | K9: Mar | L9: 160.71 | M9: 280.56 | N9: 160.71 | O9: 180.94 | Q9: Whole Installation table A5:G18:
A10: Apr | B10: 400 | C10: 155.96 | D10: 327.89 | E10: 180 | F10: 155.42 | G10: 183.42 | K10: Apr | L10: 150.23 | M10: 332.46 | N10: 148.96 | O10: 189.41 | Q10: Mean: for 1/2 hourly and daily periods calculate mean of values across all operational combustion lines for the month
A11: May | B11: 400 | C11: 163.885 | D11: 243.325 | E11: 180 | F11: 163.89 | G11: 173.935 | K11: May | L11: 162.46 | M11: 219.56 | N11: 162.47 | O11: 172.81
A12: Jun | B12: 400 | C12: 164.775 | D12: 280.695 | E12: 180 | F12: 164.75 | G12: 174 | K12: Jun | L12: 164.1 | M12: 243.22 | N12: 164.1 | O12: 170.89
A13: Jul | B13: 400 | C13: 162.595 | D13: 251.33 | E13: 180 | F13: 162.085 | G13: 179.465 | K13: Jul | L13: 163.6 | M13: 235.45 | N13: 163.69 | O13: 180.04 | Q13: Maximum: for 1/2 hourly and daily periods use the highest value across all operational combustion lines for the month
A14: Aug | B14: 400 | C14: 160.105 | D14: 254.035 | E14: 180 | F14: 160.62 | G14: 168.05 | K14: Aug | L14: 162.79 | M14: 206.06 | N14: 163.83 | O14: 167.85
A15: Sep | B15: 400 | C15: 150.825 | D15: 238.995 | E15: 180 | F15: 160.69 | G15: 165.215 | K15: Sep | L15: 165.22 | M15: 232.05 | N15: 165.02 | O15: 172.29
A16: Oct | B16: 400 | C16: 157.86 | D16: 245.26 | E16: 180 | F16: 157.825 | G16: 173.66 | K16: Oct | L16: 157.16 | M16: 233.15 | N16: 157.14 | O16: 176.31
A17: Nov | B17: 400 | C17: 158.48 | D17: 233.985 | E17: 180 | F17: 158.485 | G17: 173.8 | K17: Nov | L17: 163.77 | M17: 237.83 | N17: 163.78 | O17: 176.6
A18: Dec | B18: 400 | C18: 158.975 | D18: 232.09 | E18: 180 | F18: 158.82 | G18: 171.575 | K18: Dec | L18: 162.5 | M18: 220.69 | N18: 162.33 | O18: 171.53
K19: Annual | L19: =AVERAGE(L7:L18) -> 155.1391667 | M19: =MAX(M7:M18) -> 332.46 | N19: =AVERAGE(N7:N18) -> 155.0891667 | O19: =MAX(O7:O18) -> 189.41
J21: =+A5 -> 2024 | K21: mg/Nm3 | L21: Monthly mean of half-hourly averages | M21: Highest half- hourly average | N21: Monthly mean of daily averages | O21: Highest daily average
J22: A2 | K22: Jan | L22: 110.63 | M22: 201.97 | N22: 110.63 | O22: 153.02
K23: Feb | L23: 106.36 | M23: 213.99 | N23: 106.36 | O23: 132.06
K24: Mar | L24: 159.4 | M24: 301.17 | N24: 159.41 | O24: 201.67
K25: Apr | L25: 161.69 | M25: 323.32 | N25: 161.88 | O25: 177.43
K26: May | L26: 165.31 | M26: 267.09 | N26: 165.31 | O26: 175.06
K27: Jun | L27: 165.45 | M27: 318.17 | N27: 165.4 | O27: 177.11
K28: Jul | L28: 161.59 | M28: 267.21 | N28: 160.48 | O28: 178.89
K29: Aug | L29: 157.42 | M29: 302.01 | N29: 157.41 | O29: 168.25
K30: Sep | L30: 136.43 | M30: 245.94 | N30: 156.36 | O30: 158.14
K31: Oct | L31: 158.56 | M31: 257.37 | N31: 158.51 | O31: 171.01
K32: Nov | L32: 153.19 | M32: 230.14 | N32: 153.19 | O32: 171
K33: Dec | L33: 155.45 | M33: 243.49 | N33: 155.31 | O33: 171.62
K34: Annual | L34: =AVERAGE(L22:L33) -> 149.29 | M34: =MAX(M22:M33) -> 323.32 | N34: =AVERAGE(N22:N33) -> 150.8541667 | O34: =MAX(O22:O33) -> 201.67
J36: =+A5 -> 2024 | K36: mg/Nm3 | L36: Monthly mean of half-hourly averages | M36: Highest half- hourly average | N36: Monthly mean of daily averages | O36: Highest daily average
J37: A3 | K37: Jan
K38: Feb
K39: Mar
K40: Apr
K41: May
K42: Jun
K43: Jul
K44: Aug
K45: Sep
K46: Oct
K47: Nov
A48: Comments : | K48: Dec
K49: Annual | L49: =AVERAGE(L37:L48) ->  | M49: =MAX(M37:M48) -> 0 | N49: =AVERAGE(N37:N48) ->  | O49: =MAX(O37:O48) -> 0
J51: =+A5 -> 2024 | K51: mg/Nm3 | L51: Monthly mean of half-hourly averages | M51: Highest half- hourly average | N51: Monthly mean of daily averages | O51: Highest daily average
J52: A4 | K52: Jan
K53: Feb
K54: Mar
K55: Apr
K56: May
K57: Jun
K58: Jul
K59: Aug
K60: Sep
K61: Oct
K62: Nov
K63: Dec
K64: Annual | L64: =AVERAGE(L52:L63) ->  | M64: =MAX(M52:M63) -> 0 | N64: =AVERAGE(N52:N63) ->  | O64: =MAX(O52:O63) -> 0
J66: =+A5 -> 2024 | K66: mg/Nm3 | L66: Monthly mean of half-hourly averages | M66: Highest half- hourly average | N66: Monthly mean of daily averages | O66: Highest daily average
J67: A5 | K67: Jan
K68: Feb
K69: Mar
K70: Apr
K71: May
K72: Jun
K73: Jul
K74: Aug
K75: Sep
K76: Oct
K77: Nov
K78: Dec
K79: Annual | L79: =AVERAGE(L67:L78) ->  | M79: =MAX(M67:M78) -> 0 | N79: =AVERAGE(N67:N78) ->  | O79: =MAX(O67:O78) -> 0

Sheet TOC
A1: =+'Cover Page'!$B$29 -> Annual Performance Report 2024 | E1: =+'Cover Page'!$B$33 -> Lakeside EFW Ltd
A3: Monitoring of Total organic carbon emissions | D3: Whole Installation | G3: See Notes in Cell Q3 | J3: =+A3 -> Monitoring of Total organic carbon emissions | N3: Per Combustion Line | Q3: Notes:
Q4: User to add logic to complete Whole installation, Table A5:G18. From the data in Per Combustion Line, Table J6:O79, subject to No. of lines installed
A5: =+'Cover Page'!C39 -> 2024 | B5: 1/2 Hourly Reference Periods | E5: Daily Reference Periods
A6: mg/Nm3 | B6: 1/2 hourly TOC ELV | C6: Monthly mean of half-hourly averages | D6: Highest half- hourly average | E6: Daily TOC ELV | F6: Monthly mean of daily averages | G6: Highest daily average | J6: =+A5 -> 2024 | K6: mg/Nm3 | L6: Monthly mean of half-hourly averages | M6: Highest half- hourly average | N6: Monthly mean of daily averages | O6: Highest daily average
A7: Jan | B7: 20 | C7: =(L7+L22)/2 -> 0.29 | D7: =(M7+M22)/2 -> 6.255 | E7: 10 | F7: =(N7+N22)/2 -> 0.275 | G7: =(O7+O22)/2 -> 0.48 | J7: A1 | K7: Jan | L7: 0.4 | M7: 8.9 | N7: 0.37 | O7: 0.63
A8: Feb | B8: 20 | C8: =(L8+L23)/2 -> 0.315 | D8: 8.24 | E8: 10 | F8: =(N8+N23)/2 -> 0.315 | G8: 0.79 | K8: Feb | L8: 0.39 | M8: 12.32 | N8: 0.39 | O8: 1.12
A9: Mar | B9: 20 | C9: 0.3 | D9: 6.145 | E9: 10 | F9: 0.3 | G9: 0.68 | K9: Mar | L9: 0.26 | M9: 6.42 | N9: 0.26 | O9: 0.61 | Q9: Whole Installation table A5:G18:
A10: Apr | B10: 20 | C10: 0.415 | D10: 5.59 | E10: 10 | F10: 0.395 | G10: 0.625 | K10: Apr | L10: 0.32 | M10: 4.08 | N10: 0.33 | O10: 0.64 | Q10: Mean: for 1/2 hourly and daily periods calculate mean of values across all operational combustion lines for the month
A11: May | B11: 20 | C11: 0.37 | D11: 5.165 | E11: 10 | F11: 0.37 | G11: 0.645 | K11: May | L11: 0.29 | M11: 3.48 | N11: 0.29 | O11: 0.39
A12: Jun | B12: 20 | C12: 0.38 | D12: 4.53 | E12: 10 | F12: 0.37 | G12: 0.55 | K12: Jun | L12: 0.26 | M12: 4.19 | N12: 0.26 | O12: 0.47
A13: Jul | B13: 20 | C13: 0.81 | D13: 22.615 | E13: 10 | F13: 0.335 | G13: 0.85 | K13: Jul | L13: 0.21 | M13: 10.63 | N13: 0.2 | O13: 0.5 | Q13: Maximum: for 1/2 hourly and daily periods use the highest value across all operational combustion lines for the month
A14: Aug | B14: 20 | C14: 0.385 | D14: 3.87 | E14: 10 | F14: 0.385 | G14: 0.565 | K14: Aug | L14: 0.26 | M14: 2.26 | N14: 0.26 | O14: 0.31
A15: Sep | B15: 20 | C15: 7.935 | D15: 3.35 | E15: 10 | F15: 0.255 | G15: 0.34 | K15: Sep | L15: 0.07 | M15: 4.03 | N15: 0.05 | O15: 0.18
A16: Oct | B16: 20 | C16: 0.32 | D16: 11.285 | E16: 10 | F16: 0.305 | G16: 0.91 | K16: Oct | L16: 0.15 | M16: 14.51 | N16: 0.15 | O16: 0.37
A17: Nov | B17: 20 | C17: 0.28 | D17: 9.895 | E17: 10 | F17: 0.28 | G17: 0.895 | K17: Nov | L17: 0.27 | M17: 7.74 | N17: 0.27 | O17: 0.62
A18: Dec | B18: 20 | C18: 0.315 | D18: 16.38 | E18: 10 | F18: 0.275 | G18: 0.495 | K18: Dec | L18: 0.36 | M18: 19.66 | N18: 0.3 | O18: 0.56
K19: Annual | L19: =AVERAGE(L7:L18) -> 0.27 | M19: =MAX(M7:M18) -> 19.66 | N19: =AVERAGE(N7:N18) -> 0.2608333333 | O19: =MAX(O7:O18) -> 1.12
J21: =+A5 -> 2024 | K21: mg/Nm3 | L21: Monthly mean of half-hourly averages | M21: Highest half- hourly average | N21: Monthly mean of daily averages | O21: Highest daily average
J22: A2 | K22: Jan | L22: 0.18 | M22: 3.61 | N22: 0.18 | O22: 0.33
K23: Feb | L23: 0.24 | M23: 4.16 | N23: 0.24 | O23: 0.46
K24: Mar | L24: 0.34 | M24: 5.87 | N24: 0.34 | O24: 0.75
K25: Apr | L25: 0.51 | M25: 7.1 | N25: 0.46 | O25: 0.61
K26: May | L26: 0.45 | M26: 6.85 | N26: 0.45 | O26: 0.9
K27: Jun | L27: 0.5 | M27: 4.87 | N27: 0.48 | O27: 0.63
K28: Jul | L28: 1.41 | M28: 34.6 | N28: 0.47 | O28: 1.2
K29: Aug | L29: 0.51 | M29: 5.48 | N29: 0.51 | O29: 0.82
K30: Sep | L30: 15.8 | M30: 2.67 | N30: 0.46 | O30: 0.5
K31: Oct | L31: 0.49 | M31: 8.06 | N31: 0.46 | O31: 1.45
K32: Nov | L32: 0.29 | M32: 12.05 | N32: 0.29 | O32: 1.17
K33: Dec | L33: 0.27 | M33: 13.1 | N33: 0.25 | O33: 0.43
K34: Annual | L34: =AVERAGE(L22:L33) -> 1.749166667 | M34: =MAX(M22:M33) -> 34.6 | N34: =AVERAGE(N22:N33) -> 0.3825 | O34: =MAX(O22:O33) -> 1.45
J36: =+A5 -> 2024 | K36: mg/Nm3 | L36: Monthly mean of half-hourly averages | M36: Highest half- hourly average | N36: Monthly mean of daily averages | O36: Highest daily average
J37: A3 | K37: Jan
K38: Feb
K39: Mar
K40: Apr
K41: May
K42: Jun
K43: Jul
K44: Aug
K45: Sep
K46: Oct
K47: Nov
A48: Comments : | K48: Dec
K49: Annual | L49: =AVERAGE(L37:L48) ->  | M49: =MAX(M37:M48) -> 0 | N49: =AVERAGE(N37:N48) ->  | O49: =MAX(O37:O48) -> 0
J51: =+A5 -> 2024 | K51: mg/Nm3 | L51: Monthly mean of half-hourly averages | M51: Highest half- hourly average | N51: Monthly mean of daily averages | O51: Highest daily average
J52: A4 | K52: Jan
K53: Feb
K54: Mar
K55: Apr
K56: May
K57: Jun
K58: Jul
K59: Aug
K60: Sep
K61: Oct
K62: Nov
K63: Dec
K64: Annual | L64: =AVERAGE(L52:L63) ->  | M64: =MAX(M52:M63) -> 0 | N64: =AVERAGE(N52:N63) ->  | O64: =MAX(O52:O63) -> 0
J66: =+A5 -> 2024 | K66: mg/Nm3 | L66: Monthly mean of half-hourly averages | M66: Highest half- hourly average | N66: Monthly mean of daily averages | O66: Highest daily average
J67: A5 | K67: Jan
K68: Feb
K69: Mar
K70: Apr
K71: May
K72: Jun
K73: Jul
K74: Aug
K75: Sep
K76: Oct
K77: Nov
K78: Dec
K79: Annual | L79: =AVERAGE(L67:L78) ->  | M79: =MAX(M67:M78) -> 0 | N79: =AVERAGE(N67:N78) ->  | O79: =MAX(O67:O78) -> 0

Sheet Particulates
A1: =+'Cover Page'!$B$29 -> Annual Performance Report 2024 | E1: =+'Cover Page'!$B$33 -> Lakeside EFW Ltd
A3: Monitoring of Particulate matter emissions | D3: Whole Installation | G3: See Notes in Cell Q3 | J3: =+A3 -> Monitoring of Particulate matter emissions | N3: Per Combustion Line | Q3: Notes:
A5: =+'Cover Page'!C39 -> 2024 | B5: 1/2 Hourly Reference Periods | E5: Daily Reference Periods | Q5: User to add logic to complete Whole installation, Table A5:G18. From the data in Per Combustion Line, Table J6:O79, subject to No. of lines installed
A6: mg/Nm3 | B6: 1/2 hourly PM ELV | C6: Monthly mean of half-hourly averages | D6: Highest half- hourly average | E6: Daily PM ELV | F6: Monthly mean of daily averages | G6: Highest daily average | J6: =+A5 -> 2024 | K6: mg/Nm3 | L6: Monthly mean of half-hourly averages | M6: Highest half- hourly average | N6: Monthly mean of daily averages | O6: Highest daily average
A7: Jan | B7: 30 | C7: =(L7+L22)/2 -> 0.435 | D7: =(M7+M22)/2 -> 2.07 | E7: 5 | F7: =(N7+N22)/2 -> 0.435 | G7: =(O7+O22)/2 -> 1.13 | J7: A1 | K7: Jan | L7: 0.63 | M7: 3.47 | N7: 0.63 | O7: 1.94
A8: Feb | B8: 30 | C8: =(L8+L23)/2 -> 0.49 | D8: 26.175 | E8: 5 | F8: =(N8+N23)/2 -> 0.49 | G8: 2.075 | K8: Feb | L8: 0.71 | M8: 47.03 | N8: 0.71 | O8: 3.71
A9: Mar | B9: 30 | C9: 0.485 | D9: 1.86 | E9: 5 | F9: 0.48 | G9: 0.675 | K9: Mar | L9: 0.68 | M9: 2.52 | N9: 0.67 | O9: 0.94
A10: Apr | B10: 30 | C10: 0.48 | D10: 4.015 | E10: 5 | F10: 0.47 | G10: 0.645 | K10: Apr | L10: 0.69 | M10: 5.71 | N10: 0.68 | O10: 0.91 | Q10: Whole Installation table A5:G18:
A11: May | B11: 30 | C11: 0.53 | D11: 1.085 | E11: 5 | F11: 0.53 | G11: 0.675 | K11: May | L11: 0.8 | M11: 1.5 | N11: 0.8 | O11: 1.05 | Q11: Mean: for 1/2 hourly and daily periods calculate mean of values across all operational combustion lines for the month
A12: Jun | B12: 30 | C12: 0.55 | D12: 1.69 | E12: 5 | F12: 0.55 | G12: 0.715 | K12: Jun | L12: 0.84 | M12: 2.01 | N12: 0.84 | O12: 1.03
A13: Jul | B13: 30 | C13: 0.56 | D13: 21.58 | E13: 5 | F13: 0.535 | G13: 1.04 | K13: Jul | L13: 0.8 | M13: 17.47 | N13: 0.78 | O13: 1.51
A14: Aug | B14: 30 | C14: 0.285 | D14: 0.96 | E14: 5 | F14: 0.28 | G14: 0.345 | K14: Aug | L14: 0.3 | M14: 1.26 | N14: 0.29 | O14: 0.35 | Q14: Maximum: for 1/2 hourly and daily periods use the highest value across all operational combustion lines for the month
A15: Sep | B15: 30 | C15: 1 | D15: 17.115 | E15: 5 | F15: 0.595 | G15: 3.16 | K15: Sep | L15: 0.94 | M15: 15.14 | N15: 0.94 | O15: 6.05
A16: Oct | B16: 30 | C16: 0.765 | D16: 10.095 | E16: 5 | F16: 0.77 | G16: 3.73 | K16: Oct | L16: 0.62 | M16: 5.55 | N16: 0.62 | O16: 3.8
A17: Nov | B17: 30 | C17: 0.44 | D17: 4.515 | E17: 5 | F17: 0.44 | G17: 2.04 | K17: Nov | L17: 0.38 | M17: 2.99 | N17: 0.38 | O17: 1.48
A18: Dec | B18: 30 | C18: 0.9 | D18: 10.29 | E18: 5 | F18: 0.87 | G18: 3.575 | K18: Dec | L18: 1.11 | M18: 12.67 | N18: 1.05 | O18: 3.03
K19: Annual | L19: =AVERAGE(L7:L18) -> 0.7083333333 | M19: =MAX(M7:M18) -> 47.03 | N19: =AVERAGE(N7:N18) -> 0.6991666667 | O19: =MAX(O7:O18) -> 6.05
J21: =+A5 -> 2024 | K21: mg/Nm3 | L21: Monthly mean of half-hourly averages | M21: Highest half- hourly average | N21: Monthly mean of daily averages | O21: Highest daily average
J22: A2 | K22: Jan | L22: 0.24 | M22: 0.67 | N22: 0.24 | O22: 0.32
K23: Feb | L23: 0.27 | M23: 5.32 | N23: 0.27 | O23: 0.44
K24: Mar | L24: 0.29 | M24: 1.2 | N24: 0.29 | O24: 0.41
K25: Apr | L25: 0.27 | M25: 2.32 | N25: 0.26 | O25: 0.38
K26: May | L26: 0.26 | M26: 0.67 | N26: 0.26 | O26: 0.3
K27: Jun | L27: 0.26 | M27: 1.37 | N27: 0.26 | O27: 0.4
K28: Jul | L28: 0.32 | M28: 25.69 | N28: 0.29 | O28: 0.57
K29: Aug | L29: 0.27 | M29: 0.66 | N29: 0.27 | O29: 0.34
K30: Sep | L30: 1.06 | M30: 19.09 | N30: 0.25 | O30: 0.27
K31: Oct | L31: 0.91 | M31: 14.64 | N31: 0.92 | O31: 3.66
K32: Nov | L32: 0.5 | M32: 6.04 | N32: 0.5 | O32: 2.6
K33: Dec | L33: 0.69 | M33: 7.91 | N33: 0.69 | O33: 4.12
K34: Annual | L34: =AVERAGE(L22:L33) -> 0.445 | M34: =MAX(M22:M33) -> 25.69 | N34: =AVERAGE(N22:N33) -> 0.375 | O34: =MAX(O22:O33) -> 4.12
J36: =+A5 -> 2024 | K36: mg/Nm3 | L36: Monthly mean of half-hourly averages | M36: Highest half- hourly average | N36: Monthly mean of daily averages | O36: Highest daily average
J37: A3 | K37: Jan
K38: Feb
K39: Mar
K40: Apr
K41: May
K42: Jun
K43: Jul
K44: Aug
K45: Sep
K46: Oct
K47: Nov
A48: Comments : | K48: Dec
K49: Annual | L49: =AVERAGE(L37:L48) ->  | M49: =MAX(M37:M48) -> 0 | N49: =AVERAGE(N37:N48) ->  | O49: =MAX(O37:O48) -> 0
J51: =+A5 -> 2024 | K51: mg/Nm3 | L51: Monthly mean of half-hourly averages | M51: Highest half- hourly average | N51: Monthly mean of daily averages | O51: Highest daily average
J52: A4 | K52: Jan
K53: Feb
K54: Mar
K55: Apr
K56: May
K57: Jun
K58: Jul
K59: Aug
K60: Sep
K61: Oct
K62: Nov
K63: Dec
K64: Annual | L64: =AVERAGE(L52:L63) ->  | M64: =MAX(M52:M63) -> 0 | N64: =AVERAGE(N52:N63) ->  | O64: =MAX(O52:O63) -> 0
J66: =+A5 -> 2024 | K66: mg/Nm3 | L66: Monthly mean of half-hourly averages | M66: Highest half- hourly average | N66: Monthly mean of daily averages | O66: Highest daily average
J67: A5 | K67: Jan
K68: Feb
K69: Mar
K70: Apr
K71: May
K72: Jun
K73: Jul
K74: Aug
K75: Sep
K76: Oct
K77: Nov
K78: Dec
K79: Annual | L79: =AVERAGE(L67:L78) ->  | M79: =MAX(M67:M78) -> 0 | N79: =AVERAGE(N67:N78) ->  | O79: =MAX(O67:O78) -> 0

Sheet CO 0.5 hourly
A1: =+'Cover Page'!$B$29 -> Annual Performance Report 2024 | E1: =+'Cover Page'!$B$33 -> Lakeside EFW Ltd
A3: Monitoring of Carbon Monoxide (half hourly) | D3: Whole Installation | G3: See Notes in Cell Q3 | J3: =+A3 -> Monitoring of Carbon Monoxide (half hourly) | N3: Per Combustion Line | Q3: Notes:
A5: Please complete this tab for your plant if you have 1/2 hourly CO ELVs; otherwise, leave it blank and complete the CO 95% 10 min tab
Q7: User to add logic to complete Whole installation, Table A5:G18. From the data in Per Combustion Line, Table J6:O79, subject to No. of lines installed
A8: =+'Cover Page'!C39 -> 2024 | B8: 1/2 Hourly Reference Periods | E8: Daily Reference Periods
A9: mg/Nm3 | B9: 1/2 hourly CO ELV | C9: Monthly mean of half-hourly averages | D9: Highest half- hourly average | E9: Daily CO ELV | F9: Monthly mean of daily averages | G9: Highest daily average | J9: =+A8 -> 2024 | K9: mg/Nm3 | L9: Monthly mean of half-hourly averages | M9: Highest half- hourly average | N9: Monthly mean of daily averages | O9: Highest daily average
A10: Jan | B10: 100 | E10: 50 | J10: A1 | K10: Jan
A11: Feb | B11: =+B10 -> 100 | E11: =+E10 -> 50 | K11: Feb
A12: Mar | B12: =+B11 -> 100 | E12: =+E11 -> 50 | K12: Mar | Q12: Whole Installation table A5:G18:
A13: Apr | B13: 100 | E13: 50 | K13: Apr | Q13: Mean: for 1/2 hourly and daily periods calculate mean of values across all operational combustion lines for the month
A14: May | B14: 100 | E14: 50 | K14: May
A15: Jun | B15: 100 | E15: 50 | K15: Jun
A16: Jul | B16: 100 | E16: 50 | K16: Jul | Q16: Maximum: for 1/2 hourly and daily periods use the highest value across all operational combustion lines for the month
A17: Aug | B17: 100 | E17: 50 | K17: Aug
A18: Sep | B18: 100 | E18: 50 | K18: Sep
A19: Oct | B19: 100 | E19: 50 | K19: Oct
A20: Nov | B20: 100 | E20: 50 | K20: Nov
A21: Dec | B21: 100 | E21: 50 | K21: Dec
K22: Annual | L22: =AVERAGE(L10:L21) ->  | M22: =MAX(M10:M21) -> 0 | N22: =AVERAGE(N10:N21) ->  | O22: =MAX(O10:O21) -> 0
J24: =+A8 -> 2024 | K24: mg/Nm3 | L24: Monthly mean of half-hourly averages | M24: Highest half- hourly average | N24: Monthly mean of daily averages | O24: Highest daily average
J25: A2 | K25: Jan
K26: Feb
K27: Mar
K28: Apr
K29: May
K30: Jun
K31: Jul
K32: Aug
K33: Sep
K34: Oct
K35: Nov
K36: Dec
K37: Annual | L37: =AVERAGE(L25:L36) ->  | M37: =MAX(M25:M36) -> 0 | N37: =AVERAGE(N25:N36) ->  | O37: =MAX(O25:O36) -> 0
J39: =+A8 -> 2024 | K39: mg/Nm3 | L39: Monthly mean of half-hourly averages | M39: Highest half- hourly average | N39: Monthly mean of daily averages | O39: Highest daily average
J40: A3 | K40: Jan
K41: Feb
K42: Mar
K43: Apr
K44: May
K45: Jun
K46: Jul
K47: Aug
K48: Sep
K49: Oct
K50: Nov
A51: Comments : | K51: Dec
K52: Annual | L52: =AVERAGE(L40:L51) ->  | M52: =MAX(M40:M51) -> 0 | N52: =AVERAGE(N40:N51) ->  | O52: =MAX(O40:O51) -> 0
J54: =+A8 -> 2024 | K54: mg/Nm3 | L54: Monthly mean of half-hourly averages | M54: Highest half- hourly average | N54: Monthly mean of daily averages | O54: Highest daily average
J55: A4 | K55: Jan
K56: Feb
K57: Mar
K58: Apr
K59: May
K60: Jun
K61: Jul
K62: Aug
K63: Sep
K64: Oct
K65: Nov
K66: Dec
K67: Annual | L67: =AVERAGE(L55:L66) ->  | M67: =MAX(M55:M66) -> 0 | N67: =AVERAGE(N55:N66) ->  | O67: =MAX(O55:O66) -> 0
J69: =+A8 -> 2024 | K69: mg/Nm3 | L69: Monthly mean of half-hourly averages | M69: Highest half- hourly average | N69: Monthly mean of daily averages | O69: Highest daily average
J70: A5 | K70: Jan
K71: Feb
K72: Mar
K73: Apr
K74: May
K75: Jun
K76: Jul
K77: Aug
K78: Sep
K79: Oct
K80: Nov
K81: Dec
K82: Annual | L82: =AVERAGE(L70:L81) ->  | M82: =MAX(M70:M81) -> 0 | N82: =AVERAGE(N70:N81) ->  | O82: =MAX(O70:O81) -> 0

Sheet CO 95% 10 min
A1: =+'Cover Page'!$B$29 -> Annual Performance Report 2024 | E1: =+'Cover Page'!$B$33 -> Lakeside EFW Ltd
A3: Monitoring of Carbon Monoxide (10-minute avg) | E3: Whole Installation | H3: See Notes in Cell S3 | J3: =+A3 -> Monitoring of Carbon Monoxide (10-minute avg) | O3: Per Combustion Line | Q3: Notes: | S3: Notes:
A5: Please complete this tab for your plant if you have 10-minute average CO ELVs; otherwise, leave it blank and complete the CO 0.5 hourly tab
S7: User to add logic to complete Whole installation, Table A5:H18. From the data in Per Combustion Line, Table K6:Q79, subject to No. of lines installed
A8: =+'Cover Page'!C39 -> 2024 | B8: 10-minute Reference Periods | F8: Daily Reference Periods
A9: mg/Nm3 | B9: 95%ile 10-min avg CO ELV | C9: Highest daily 95%ile 10-min average | D9: Monthly mean of 10-min averages | E9: Highest 10-min average | F9: Daily CO ELV | G9: Monthly mean of daily averages | H9: Highest daily average | K9: =+A8 -> 2024 | L9: mg/Nm3 | M9: Highest daily 95%ile 10-min average | N9: Monthly mean of 10-min averages | O9: Highest 10-min average | P9: Monthly mean of daily averages | Q9: Highest daily average
A10: Jan | B10: 150 | C10: =(M10+M25)/2 -> 55.875 | D10: =(N10+N25)/2 -> 6.51 | E10: 706.01 | F10: 50 | G10: =(P10+P25)/2 -> 6.46 | H10: =(Q10+Q25)/2 -> 16.145 | K10: A1 | L10: Jan | M10: 43.38 | N10: 6.62 | O10: 625.38 | P10: 6.52 | Q10: 16.52
A11: Feb | B11: =+B10 -> 150 | C11: =(M11+M26)/2 -> 56.58 | D11: 6.485 | E11: 586.2 | F11: =+F10 -> 50 | G11: =(P11+P26)/2 -> 6.485 | H11: 12.31 | L11: Feb | M11: 25.03 | N11: 4.76 | O11: 526.56 | P11: 4.76 | Q11: 8.2
A12: Mar | B12: =+B11 -> 150 | C12: 134.08 | D12: 10.325 | E12: 822.83 | F12: =+F11 -> 50 | G12: 10.33 | H12: 27.92 | L12: Mar | M12: 142.1 | N12: 8.56 | O12: 551.12 | P12: 8.57 | Q12: 28.13 | S12: Whole Installation table A5:H18:
A13: Apr | B13: 150 | C13: 137.28 | D13: 9.19 | E13: 1077.65 | F13: 50 | G13: 9.335 | H13: 19.49 | L13: Apr | M13: 87.65 | N13: 5.4 | O13: 347.31 | P13: 5.3 | Q13: 12.1 | S13: Mean: for 10-min and daily periods use average of all operational combustion lines.
A14: May | B14: 150 | C14: 78.51 | D14: 7.525 | E14: 733.99 | F14: 50 | G14: 7.54 | H14: 18.24 | L14: May | M14: 72.59 | N14: 6.48 | O14: 636.47 | P14: 6.49 | Q14: 15.28
A15: Jun | B15: 150 | C15: 78.76 | D15: 6.99 | E15: 831.615 | F15: 50 | G15: 6.885 | H15: 18.56 | L15: Jun | M15: 72.72 | N15: 6.21 | O15: 737.61 | P15: 6.22 | Q15: 14.12
A16: Jul | B16: 150 | C16: 78.36 | D16: 12.62 | E16: 5101.23 | F16: 50 | G16: 6.31 | H16: 12.75 | L16: Jul | M16: 60.92 | N16: 4.04 | O16: 483.49 | P16: 3.75 | Q16: 8.59 | S16: Maximum: for 10-min and daily periods use the highest of all operational combustion lines in any month.
A17: Aug | B17: 150 | C17: 69.755 | D17: 5.54 | E17: 579.51 | F17: 50 | G17: 5.605 | H17: 10.63 | L17: Aug | M17: 27.45 | N17: 3.51 | O17: 407.43 | P17: 3.64 | Q17: 5.57
A18: Sep | B18: 150 | C18: 153.925 | D18: 10.32 | E18: 880.51 | F18: 50 | G18: 6.525 | H18: 20.745 | L18: Sep | M18: 115.44 | N18: 7.57 | O18: 1166.1 | P18: 7.19 | Q18: 33.82
A19: Oct | B19: 150 | C19: 56.705 | D19: 6.77 | E19: 1100.595 | F19: 50 | G19: 6.71 | H19: 26.325 | L19: Oct | M19: 48.21 | N19: 6.5 | O19: 1789.94 | P19: 6.4 | Q19: 36.26
A20: Nov | B20: 150 | C20: 63.08 | D20: 6.225 | E20: 743.545 | F20: 50 | G20: 6.225 | H20: 14 | L20: Nov | M20: 32.1 | N20: 4.62 | O20: 644.29 | P20: 4.62 | Q20: 10.2
A21: Dec | B21: 150 | C21: 69.47 | D21: 6.41 | E21: 691.62 | F21: 50 | G21: 6.375 | H21: 16.165 | L21: Dec | M21: 69.59 | N21: 6.67 | O21: 808.97 | P21: 6.63 | Q21: 16.62
L22: Annual | M22: =AVERAGE(M10:M21) -> 66.43166667 | O22: =MAX(O10:O21) -> 1789.94 | P22: =AVERAGE(P10:P21) -> 5.840833333 | Q22: =MAX(Q10:Q21) -> 36.26
K24: =+A8 -> 2024 | L24: mg/Nm3 | M24: Highest daily 95%ile 10-min average | N24: Monthly mean of 10-min averages | O24: Highest 10-min average | P24: Monthly mean of daily averages | Q24: Highest daily average
K25: A2 | L25: Jan | M25: 68.37 | N25: 6.4 | O25: 786.64 | P25: 6.4 | Q25: 15.77
L26: Feb | M26: 88.13 | N26: 8.21 | O26: 645.84 | P26: 8.21 | Q26: 16.42
L27: Mar | M27: 126.06 | N27: 12.09 | O27: 1094.54 | P27: 12.09 | Q27: 27.71
L28: Apr | M28: 186.91 | N28: 12.98 | O28: 1807.99 | P28: 13.37 | Q28: 26.88
L29: May | M29: 84.43 | N29: 8.57 | O29: 831.51 | P29: 8.59 | Q29: 21.2
L30: Jun | M30: 84.8 | N30: 7.77 | O30: 925.62 | P30: 7.55 | Q30: 23
L31: Jul | M31: 95.8 | N31: 21.2 | O31: 9718.97 | P31: 8.87 | Q31: 16.91
L32: Aug | M32: 112.06 | N32: 7.57 | O32: 751.59 | P32: 7.57 | Q32: 15.69
L33: Sep | M33: 192.41 | N33: 13.07 | O33: 594.92 | P33: 5.86 | Q33: 7.67
L34: Oct | M34: 65.2 | N34: 7.04 | O34: 411.25 | P34: 7.02 | Q34: 16.39
L35: Nov | M35: 94.06 | N35: 7.83 | O35: 842.8 | P35: 7.83 | Q35: 17.8
L36: Dec | M36: 69.35 | N36: 6.15 | O36: 574.27 | P36: 6.12 | Q36: 15.71
L37: Annual | M37: =AVERAGE(M25:M36) -> 105.6316667 | O37: =MAX(O25:O36) -> 9718.97 | P37: =AVERAGE(P25:P36) -> 8.29 | Q37: =MAX(Q25:Q36) -> 27.71
K39: =+A8 -> 2024 | L39: mg/Nm3 | M39: Highest daily 95%ile 10-min average | N39: Monthly mean of 10-min averages | O39: Highest 10-min average | P39: Monthly mean of daily averages | Q39: Highest daily average
K40: A3 | L40: Jan
L41: Feb
L42: Mar
L43: Apr
L44: May
L45: Jun
L46: Jul
L47: Aug
L48: Sep
L49: Oct
L50: Nov
A51: Comments : | L51: Dec
A52: Environment Agency explanatory note: The 10-minute average ELV is based on the “95th percentile”. In this case this means that 95% of the 10 minute averages in the relevant 24-hour period (i.e. 137) must be below 150 mg/Nm3, and 5% (i.e. 7) are allowed to be any value above 150 mg/Nm3. Whilst we expect operators to minimise CO emissions at all times, it is perfectly acceptable for the value of the maximum 10-minute average to be above 150 mg/Nm3, provided the 95th percentile ELV has been met for that period. | L52: Annual | M52: =AVERAGE(M40:M51) ->  | O52: =MAX(O40:O51) -> 0 | P52: =AVERAGE(P40:P51) ->  | Q52: =MAX(Q40:Q51) -> 0
K54: =+A8 -> 2024 | L54: mg/Nm3 | M54: Highest daily 95%ile 10-min average | N54: Monthly mean of 10-min averages | O54: Highest 10-min average | P54: Monthly mean of daily averages | Q54: Highest daily average
K55: A4 | L55: Jan
L56: Feb
L57: Mar
L58: Apr
L59: May
L60: Jun
L61: Jul
L62: Aug
L63: Sep
L64: Oct
L65: Nov
L66: Dec
L67: Annual | M67: =AVERAGE(M55:M66) ->  | O67: =MAX(O55:O66) -> 0 | P67: =AVERAGE(P55:P66) ->  | Q67: =MAX(Q55:Q66) -> 0
K69: =+A8 -> 2024 | L69: mg/Nm3 | M69: 95%ile 10-min avg maximum | N69: Monthly CO 10-min avg mean | O69: 10-min avg maximum | P69: Monthly daily mean | Q69: Monthly daily maximum
K70: A5 | L70: Jan
L71: Feb
L72: Mar
L73: Apr
L74: May
L75: Jun
L76: Jul
L77: Aug
L78: Sep
L79: Oct
L80: Nov
L81: Dec
L82: Annual | M82: =AVERAGE(M70:M81) ->  | O82: =MAX(O70:O81) -> 0 | P82: =AVERAGE(P70:P81) ->  | Q82: =MAX(Q70:Q81) -> 0

Sheet NH3
A1: =+'Cover Page'!$B$29 -> Annual Performance Report 2024 | E1: =+'Cover Page'!$B$33 -> Lakeside EFW Ltd
A3: Monitoring of Ammnonia emissions | D3: Whole Installation | G3: See Notes in Cell Q3 | J3: =+A3 -> Monitoring of Ammnonia emissions | N3: Per Combustion Line | Q3: Notes:
Q4: User to add logic to complete Whole installation, Table A5:G18. From the data in Per Combustion Line, Table J6:O79, subject to No. of lines installed
A5: =+'Cover Page'!C39 -> 2024 | B5: 1/2 Hourly Reference Periods | E5: Daily Reference Periods
A6: mg/Nm3 | B6: 1/2 hourly NH3 ELV | C6: Monthly mean of half-hourly averages | D6: Highest half- hourly average | E6: Daily NH3 ELV | F6: Monthly mean of daily averages | G6: Highest daily average | J6: =+A5 -> 2024 | K6: mg/Nm3 | L6: Monthly mean of half-hourly averages | M6: Highest half- hourly average | N6: Monthly mean of daily averages | O6: Highest daily average
A7: Jan | B7: None | C7: =(L7+L22)/2 -> 0.085 | D7: =(M7+M22)/2 -> 2.435 | E7: 15 | F7: =(N7+N22)/2 -> 0.08 | G7: =(O7+O22)/2 -> 0.315 | J7: A1 | K7: Jan | L7: 0.06 | M7: 4.28 | N7: 0.05 | O7: 0.3
A8: Feb | B8: =+B7 -> None | C8: =(L8+L23)/2 -> 0.05 | D8: 1.56 | E8: 15 | F8: =(N8+N23)/2 -> 0.05 | G8: 0.255 | K8: Feb | L8: -0.03 | M8: 2.25 | N8: -0.03 | O8: 0.19
A9: Mar | B9: =+B8 -> None | C9: 0.64 | D9: 22.745 | E9: 15 | F9: 0.64 | G9: 4.25 | K9: Mar | L9: 0.31 | M9: 14.14 | N9: 0.31 | O9: 3.65 | Q9: Whole Installation table A5:G18:
A10: Apr | B10: None | C10: 0.7 | D10: 26.835 | E10: 15 | F10: 0.635 | G10: 5.46 | K10: Apr | L10: 0.86 | M10: 19.46 | N10: 0.74 | O10: 6.25 | Q10: Mean: for 1/2 hourly and daily periods calculate mean of values across all operational combustion lines for the month
A11: May | B11: None | C11: 0.26 | D11: 31.23 | E11: 15 | F11: 0.265 | G11: 7.12 | K11: May | L11: -0.03 | M11: 8.93 | N11: -0.03 | O11: 1.13
A12: Jun | B12: None | C12: 0.245 | D12: 16.5 | E12: 15 | F12: 0.23 | G12: 1.935 | K12: Jun | L12: -0.01 | M12: 10.07 | N12: -0.01 | O12: 0.86
A13: Jul | B13: None | C13: 0.455 | D13: 22.735 | E13: 15 | F13: 0.335 | G13: 2.94 | K13: Jul | L13: 0.1 | M13: 7.58 | N13: 0.09 | O13: 2.24 | Q13: Maximum: for 1/2 hourly and daily periods use the highest value across all operational combustion lines for the month
A14: Aug | B14: None | C14: 0.305 | D14: 6.69 | E14: 15 | F14: 0.305 | G14: 1.01 | K14: Aug | L14: 0.19 | M14: 0.41 | N14: 0.19 | O14: 0.25
A15: Sep | B15: None | C15: 0.61 | D15: 16.19 | E15: 15 | F15: 0.405 | G15: 2.995 | K15: Sep | L15: 0.56 | M15: 19.75 | N15: 0.51 | O15: 5.65
A16: Oct | B16: None | C16: 1.33 | D16: 172.425 | E16: 15 | F16: 1.31 | G16: 7.495 | K16: Oct | L16: 0.5 | M16: 25.7 | N16: 0.44 | O16: 4.27
A17: Nov | B17: None | C17: 0.685 | D17: 37.94 | E17: 15 | F17: 0.685 | G17: 6.755 | K17: Nov | L17: 0.81 | M17: 47.15 | N17: 0.81 | O17: 8.92
A18: Dec | B18: None | C18: 0.31 | D18: 5.88 | E18: 15 | F18: 0.295 | G18: 0.625 | K18: Dec | L18: 0.22 | M18: 4.03 | N18: 0.2 | O18: 0.56
K19: Annual | L19: =AVERAGE(L7:L18) -> 0.295 | M19: =MAX(M7:M18) -> 47.15 | N19: =AVERAGE(N7:N18) -> 0.2725 | O19: =MAX(O7:O18) -> 8.92
J21: =+A5 -> 2024 | K21: mg/Nm3 | L21: Monthly mean of half-hourly averages | M21: Highest half- hourly average | N21: Monthly mean of daily averages | O21: Highest daily average
J22: A2 | K22: Jan | L22: 0.11 | M22: 0.59 | N22: 0.11 | O22: 0.33
K23: Feb | L23: 0.13 | M23: 0.87 | N23: 0.13 | O23: 0.32
K24: Mar | L24: 0.97 | M24: 31.35 | N24: 0.97 | O24: 4.85
K25: Apr | L25: 0.54 | M25: 34.21 | N25: 0.53 | O25: 4.67
K26: May | L26: 0.55 | M26: 53.53 | N26: 0.56 | O26: 13.11
K27: Jun | L27: 0.5 | M27: 22.93 | N27: 0.47 | O27: 3.01
K28: Jul | L28: 0.81 | M28: 37.89 | N28: 0.58 | O28: 3.64
K29: Aug | L29: 0.42 | M29: 12.97 | N29: 0.42 | O29: 1.77
K30: Sep | L30: 0.66 | M30: 12.63 | N30: 0.3 | O30: 0.34
K31: Oct | L31: 2.16 | M31: 319.15 | N31: 2.18 | O31: 10.72
K32: Nov | L32: 0.56 | M32: 28.73 | N32: 0.56 | O32: 4.59
K33: Dec | L33: 0.4 | M33: 7.73 | N33: 0.39 | O33: 0.69
K34: Annual | L34: =AVERAGE(L22:L33) -> 0.6508333333 | M34: =MAX(M22:M33) -> 319.15 | N34: =AVERAGE(N22:N33) -> 0.6 | O34: =MAX(O22:O33) -> 13.11
J36: =+A5 -> 2024 | K36: mg/Nm3 | L36: Monthly mean of half-hourly averages | M36: Highest half- hourly average | N36: Monthly mean of daily averages | O36: Highest daily average
J37: A3 | K37: Jan
K38: Feb
K39: Mar
K40: Apr
K41: May
K42: Jun
K43: Jul
K44: Aug
K45: Sep
K46: Oct
K47: Nov
A48: Comments : | K48: Dec
A49: An indicated ELV value of zero in the table above means that no ammonia limit is/was set in the permit. | K49: Annual | L49: =AVERAGE(L37:L48) ->  | M49: =MAX(M37:M48) -> 0 | N49: =AVERAGE(N37:N48) ->  | O49: =MAX(O37:O48) -> 0
J51: =+A5 -> 2024 | K51: mg/Nm3 | L51: Monthly mean of half-hourly averages | M51: Highest half- hourly average | N51: Monthly mean of daily averages | O51: Highest daily average
J52: A4 | K52: Jan
K53: Feb
K54: Mar
K55: Apr
K56: May
K57: Jun
K58: Jul
K59: Aug
K60: Sep
K61: Oct
K62: Nov
K63: Dec
K64: Annual | L64: =AVERAGE(L52:L63) ->  | M64: =MAX(M52:M63) -> 0 | N64: =AVERAGE(N52:N63) ->  | O64: =MAX(O52:O63) -> 0
J66: =+A5 -> 2024 | K66: mg/Nm3 | L66: Monthly mean of half-hourly averages | M66: Highest half- hourly average | N66: Monthly mean of daily averages | O66: Highest daily average
J67: A5 | K67: Jan
K68: Feb
K69: Mar
K70: Apr
K71: May
K72: Jun
K73: Jul
K74: Aug
K75: Sep
K76: Oct
K77: Nov
K78: Dec
K79: Annual | L79: =AVERAGE(L67:L78) ->  | M79: =MAX(M67:M78) -> 0 | N79: =AVERAGE(N67:N78) ->  | O79: =MAX(O67:O78) -> 0

Sheet Template changes log
A1: Log of changes to template (Environment Agency use only)
A3: Date | B3: Description of change | C3: New version number and date
A4: 2024-01-16 | B4: Air (periodic) tab: corrected default O2 reference from 6 to 11% | C4: Version 23.5a (for incinerators) - 16/01/2024
A5: 2024-09-23 | B5: Air (periodic) tab: corrected symbol for Thallium to Tl
A6: 2024-09-23 | B6: Air (periodic) tab: removed last year's references to different emission limit values applying from 03/12/23 and updated all relevant ELVs
A7: 2024-09-23 | B7: Tabs for continuously monitored pollutants (HCl, SO2 etc.): changed terminology in table headings to improve clarity
A8: 2024-09-23 | B8: Tabs for continuously monitored pollutants (HCl, SO2 etc.): removed last year's references to different emission limit values applying from 03/12/23 and updated all relevant ELVs
A9: 2024-09-23 | B9: Perf 1 tab: updated formula for water usage to report m3 rather than litres and corrected error with formula copying operator name
A10: 2024-09-23 | B10: Operational Summary tab: table added on start-ups and shut-downs
A11: 2024-09-23 | B11: Operational Summary tab: table added on dioxins and mercury protocols
A12: 2024-09-23 | B12: Operational Summary tab: table added on AST, QAL 2 and calibration functions
A13: 2024-09-23 | B13: CO2 N2O tab: various changes made to notes to reflect the fact that most plants should now have calibrated CEMS and flow meters + some have C14 samplers and more up to date industry data | C13: Version 24a (for incinerators) - 23/09/24
A14: 2024-11-08 | B14: CO2 N2O tab: Changed the N2O CO2 equivalence factor from 298 to 265 in line with recently updated government greenhouse gas figures: https://www.gov.uk/government/publications/greenhouse-gas-reporting-conversion-factors-2024
A15: 2024-11-08 | B15: CO2 N2O tab: Added an additional requirement for municipal EfW plants to state the yearly average biogenic percentage of the waste by mass, and reference to a document which sets out a methodology for calculating NCV of waste from the results of C14 sampling.
A16: 2024-11-08 | B16: Permit Compliance tab: Two additional columns added + explanatory notes to the table entitled "Summary of non-compliances under the permit" to allow CCS scores to be stated where relevant.
A17: 2024-11-08 | B17: Residue Quality tab: Note added explaining application of TOC and LOI limits and asking operators to report both metrics where measured. | C17: Version 24.1a (for incinerators) - 08/11/24
A18: 2024-11-27 | B18: Operational Summary tab: Tables on mercury & dioxins protocols and ASTs removed (covered instead by new tables added to updated Air 9 periodic monitoring form) | C18: Version 24.2a (for incinerators) - 27/11/24
